Workbook

Sheet INFO
A1: DISCLAIMER: • This spreadsheet has been developed in the framework of the preparation and revision of the set of EN or ISO standards on the energy performance of buildings, to support the European "Energy Performance of Buildings Directive" recast (EPBD-recast, directive 2010/31/EU). • It is meant for use by CEN and ISO technical committee(s) and the working group(s) working on the preparation or revision of the EPB-standard to which this spreadsheet applies. The spreadsheet supports checking that all equations in the developed standard are consistent and can be linked with other relevant standards. It is not meant to perform a full or partial energy performance calculation. • The spreadsheet supports the expert user of the standards, in particular those who want to review the content of the standard and those who want to translate the standard to a software, to understand the correct interpretation of the equations and calculation steps in the standard. • Although it has been developed with care, neither the technical committee(s), nor the working group(s) and experts related to the EPB- standard to which this spreadsheet applies warrant that the calculations and procedures in this spreadsheet are free of errors. The technical committees as well as the working groups and their respective members expressly disclaim any liability or responsibility arising from use of this spreadsheet, or any consequences thereof. Any responsibility arising from the use of this spreadsheet lies with the user.
A2: DRAFT VERSION: • As long as the associated EPB standard or any of the other EPB standards to which it is directly linked are in a draft stage, this spreadsheet is also a draft version only.
A3: WARNINGS: • Note that the spreadsheet may not allow testing all calculation options that are possible according to the standard to which it applies. This remark applies in particular but not only to limitations on the number instances of a variable that can be considered. • In case of differences, the standard should be regarded as the reference, not the spreadsheet. However, during the standard's drafting phase, shortcomings in the draft standard may have been detected and dealt with in the spreadsheets (ideally, such differences are marked). • Note also that these spreadsheets are purely intended for testing and demonstration and therefore not aiming to be user friendly or to be protected against wrong or improper use.
A4: TERMS OF USE: • The user is not allowed to redistribute a modified version of this spreadsheet. • The author(s) would appreciate your feed back on the spreadsheet via the comment sheets for the associated draft standard to be prepared by the national standards bodies during enquiry of the draft standard(s),
A5: Intended use of this document Those responsible for the drafting of actual individual EPB standards shall - read and understand the following documents - prCEN/TS 16628 Basic Principles (in short "BP") - prCEN/TS 16629 Detailed Technical Rules (in short "DTR") - prEN 15603:2013 ("Overarching Standard", in short "OA")) - prCEN/TR 15615:2013 Technical report to overarching standard; - Prepare their individual EPB standard according to CEN rules, BP, DTR and OA - Prepare the accompanying technical report using the dedicated template - Prepare an accompanying XLS spreadsheet, to demonstrate inputs, output and calculation chain. This sample excel spreadsheet provides a template to help in this task.
A6: Why an Excel spradsheet? To demonstrate the validity and required data I/O for the calculation procedure defined in the standard: - list of all input needed --> sheet "Method_input" - list of intended output --> sheet "Method_output" - calculation sequence --> sheet "Method_calculation"
A7: The example is prepared for a simple procedure. The sheet calculation may need extensions such as: - using several columns when operating on arrays - refering to a subset of sheets input/calculation/output to describe a subroutine For complex tasks MACRO can be used. This sheet does not support calculation methods that take into account data in a different time-step than that that is being calculated. A version that allows taking into account values at previous time step will be developed.
A8: LIST OF AVAILABLE SHEETS
A9: Simplified_input_correlation Use this sheet to demontrate simplified input correlation, if any in your standard. Typically these correlations are defined in annex C of the standard. They provide the normal detailed input of a procedure, based on a simplified input data set.
A10: Product_descriptive_data Use this sheet to list product descriptive data (typically with case identifiers). Some examples of selection tables are given. The output from the selection tables (green cells) can be linked to the sheet "method_input" for use in the procedure.
A11: Product_tech_data Use this sheet to list product technical data (typically numerical values and data). Some examples are given with default that may be typically included in annex A of the standard. The output from the selection tables (green cells) can be linked to the sheet "method_input" for use in the procedure.
A12: Process_design_data Use this sheet to list system descriptive data (typically with case identifiers). Some examples of selection tables are given. The output from the selection tables (green cells) can be linked to the sheet "method_input" for use in the procedure.
A13: Data_catalogue_example It is an example of how a data catalogue can work, filtering the catalogue of product properties based on product descriptive data. You can optionally build a similar catalogue for products involved in your standard.
A14: Input_series Prepare in this sheet data for each time step if you want to test the procedure on more steps.
A15: Method_input List in this sheet all the input required for the calculation in one time step. THIS SHEET IS REQUIRED TO DEMONSTRATE THE REQUIRED DATA INPUT.
A16: Method_calculation Detail in this sheet your calculation procedure. There should be one calculation in one cell for each equation in the standard. THIS SHEET IS REQUIRED TO DEMONSTRATE THE CALCULATION PROCEDURE.
A17: Method_output List in this sheet all the intended output of the procedure. THIS SHEET IS REQUIRED TO DEMONSTRATE THE AVAILABLE DATA OUTPUT.
A18: Output_series Series alculation results are stored in this sheet. Calculation for each time step is launched in this sheet.

Sheet Simplified_input_correlation
A1: Create here a simulation of each correlation method in your Annex C
A4: Name | B4: Symbol | C4: Unit | D4: Value | E4: Range | F4: Formula ref. | G4: Formula | H4: Notes
A5: Input data
A6: Length of the building | B6: lL | C6: m | D6: 30 | E6: 4…100
A7: Width of the building | B7: lW | C7: m | D7: 20 | E7: 4…20
A8: Number of loors | B8: Nlev | C8: - | D8: 3 | E8: 1…10
A9: Floor heigth | B9: Hfl | C9: m | D9: 3.1 | E9: 2…5
A12: METHOD
A14: Detail all formulas
A15: Length of connection of radiators to vertical shafts | B15: lA | C15: m | D15: =0.55*Method_in*D7*D8 -> 990
A16: Length of vertical shafts | B16: lS | C16: m | D16: =0.025*Method_in*D7*D8*D9 -> 139.5
A17: Length of base collector | B17: lV | C17: m | D17: =2*Method_in+0.01625*Method_in*D7*D7 -> 255
A18: …
A20: Output data
A21: Length of shafts | B21: lS | C21: m | E21: 0...∞
A22: diameter of shafts | B22: dS | C22: m | E22: 0…0,2
A23: Length of base ring | B23: lB | C23: m | E23: 0...∞
A24: diameter of base ring | B24: dB | C24: m | E24: 0…0,2

Sheet Product_descriptive_data
A1: Example of descriptive data. In a simple structure, this can be connected directly to the "method_input" sheet where this data is required. In this example spreadsheet the "Method_input" is linked to the "data_catalogue".
A6: Product descriptive data (qualitative)
A8: Cooling generator type 1
A9: 1 | B9: GEN_TYPE | C9: =INDEX(C11:C13,A9) -> COMP
A11: Compression chiller | C11: COMP
A12: Absorption chiller | C12: ABS
A13: Any other generator type | C13: OTHER
A16: Cooling generator type 2
A17: 1 | B17: GEN_TYPE | C17: =INDEX(C19:C21,A17) -> COMP
A19: Compression chiller | C19: COMP
A20: Absorption chiller | C20: ABS
A21: Any other generator type | C21: OTHER
A24: Heat rejection type
A25: 4 | B25: HEAT_REJ_TYPE | C25: =INDEX(C27:C31,A25) -> HYBRID
A27: Air cooled condenser | C27: AIR_C_COND
A28: Heat rejection with dry operation | C28: DRY
A29: Heat rejection with wet operation (sprayed air cooler, cooling tower) | C29: WET
A30: Heat rejection with dry or wet operation depending on conditions | C30: HYBRID
A31: Other type of heat rejection (ground, ground water, surface water) | C31: OTHER

Sheet Product_tech_data
A1: EXAMPLE OF A SHEET WITH DEFAULT INPUT Create here a simulation of each default data formula given in annex A of the standard. Optionally connect the selected values to the detailed input data selection sheet (detailed input)
A3: Data input type
A4: 1 | C4: =INDEX(C6:C7,A4) -> 14825
A6: EN 14825 | C6: 14825
A7: EN 14511 or default value | C7: 14511
A9: 6.3.2.2.2 Compressor chiller characteristics | D9: Chiller 1 | E9: Chiller 2
A10: Energy efficiency at part load condition A | B10: EERA | C10: - | D10: =Method_input!D33 -> 2.83 | E10: =Method_input!E33 -> 4 | F10: EN 14825 | G10: No | J10: Matrix A:
A11: Part load ratio A | B11: fC;PL;A | C11: % | D11: =Method_input!D34 -> 100 | E11: =Method_input!E34 -> 100 | F11: EN 14825 | G11: No | J11: =(D11/100)^3 -> 1 | K11: =(D11/100)^2 -> 1 | L11: =(D11/100) -> 1 | M11: 1 | N11: =-(D10/Method_input!$D$30*D11/100)/(Method_input!$D$78+D12) -> -0.003569516331 | P11: =D10/Method_input!$D$30*((D13-D12)/(Method_input!$D$78+D12)) -> 0.0820988756 | Q11: =E10/Method_input!$D$30*((E13-E12)/(Method_input!$D$78+E12)) -> 0.1160408136
A12: Evaporator chilled water outlet temperature at part load condition A | B12: ϑC; evap;out;A | C12: °C | D12: =Method_input!D35 -> 7 | E12: =Method_input!E35 -> 7 | F12: EN 14825 | G12: No | J12: =(D15/100)^3 -> 0.405224 | K12: =(D15/100)^2 -> 0.5476 | L12: =(D15/100) -> 0.74 | M12: 1 | N12: =-(D14/Method_input!$D$30*D15/100)/(Method_input!$D$78+D16) -> -0.003350804623 | P12: =D14/Method_input!$D$30*((D17-D16)/(Method_input!$D$78+D16)) -> 0.08603417276 | Q12: =E14/Method_input!$D$30*((E17-E16)/(Method_input!$D$78+E16)) -> 0.09585980252
A13: Condensor cooling water/air inlet temperature part load condition A | B13: ϑcond;in;A | C13: °C | D13: =Method_input!D36 -> 30 | E13: =Method_input!E36 -> 30 | F13: EN 14825 | G13: No | J13: =(D19/100)^3 -> 0.103823 | K13: =(D19/100)^2 -> 0.2209 | L13: =(D19/100) -> 0.47 | M13: 1 | N13: =-(D18/Method_input!$D$30*D19/100)/(Method_input!$D$78+D20) -> -0.002821809871 | P13: =D18/Method_input!$D$30*((D21-D20)/(Method_input!$D$78+D20)) -> 0.09005776184 | Q13: =E18/Method_input!$D$30*((E21-E20)/(Method_input!$D$78+E20)) -> 0.07567879146
A14: Energy efficiency at part load condition B | B14: EERB | C14: - | D14: =Method_input!D37 -> 3.59 | E14: =Method_input!E37 -> 4 | F14: EN 14825 | G14: No | J14: =(D23/100)^3 -> 0.009261 | K14: =(D23/100)^2 -> 0.0441 | L14: =(D23/100) -> 0.21 | M14: 1 | N14: =-(D22/Method_input!$D$30*D23/100)/(Method_input!$D$78+D24) -> -0.001284647485 | P14: =D22/Method_input!$D$30*((D25-D24)/(Method_input!$D$78+D24)) -> 0.06729105874 | Q14: =E22/Method_input!$D$30*((E25-E24)/(Method_input!$D$78+E24)) -> 0.0554977804
A15: Part load ratio B | B15: fC;PL;B | C15: % | D15: =Method_input!D38 -> 74 | E15: =Method_input!E38 -> 74 | F15: EN 14825 | G15: No | J15: =(D26/100)^3 -> 0.103823 | K15: =(D26/100)^2 -> 0.2209 | L15: =(D26/100) -> 0.47 | M15: 1 | N15: =-D29/Method_input!$D$30*D26/100/(Method_input!$D$78+D27) -> -0.001840310785 | P15: =D29/Method_input!$D$30*((D28-D27)/(Method_input!$D$78+D27)) -> 0.09005776184 | Q15: =E29/Method_input!$D$30*((E28-E27)/(Method_input!$D$78+E27)) -> 0.1160408136
A16: Evaporator chilled water outlet temperature at part load condition B | B16: ϑC;evap;out;B | C16: °C | D16: =Method_input!D39 -> 7 | E16: =Method_input!E39 -> 7 | F16: EN 14825 | G16: No | J16: B = Inverse of matrix A: | P16: Test:
A17: Condensor cooling water/air inlet temperature at part load condition B | B17: ϑcond;in;B | C17: °C | D17: =Method_input!D40 -> 26 | E17: =Method_input!E40 -> 26 | F17: EN 14825 | G17: No | J17: =MINVERSE(A) -> 9.185941835 | K17: -26.87738537 | L17: 19.97908398 | M17: -9.185941835 | N17: 6.898301383 | P17: =MMULT(A,D32:D36) -> 0.0820988756
A18: Energy efficiency at part load condition C | B18: EERC | C18: - | D18: =Method_input!D41 -> 4.76 | E18: =Method_input!E41 -> 4 | F18: EN 14825 | G18: No | J18: -13.04403741 | K18: 45.15400742 | L18: -35.01638064 | M18: 20.30093145 | N18: -17.39452083 | P18: 0.08603417276
A19: Part load ratio C | B19: fC;PL;C | C19: % | D19: =Method_input!D42 -> 47 | E19: =Method_input!E42 -> 47 | F19: EN 14825 | G19: No | J19: 5.52901839 | K19: -20.92941999 | L19: 14.36729461 | M19: -14.30986019 | N19: 15.34296718 | P19: 0.09005776184
A20: Evaporator chilled water outlet temperature at part load condition C | B20: ϑC;evap;out;C | C20: °C | D20: =Method_input!D43 -> 7 | E20: =Method_input!E43 -> 7 | F20: EN 14825 | G20: No | J20: -0.6709228197 | K20: 2.652797936 | L20: -2.966798419 | M20: 3.19487057 | N20: -1.209947267 | P20: 0.06729105874
A21: Condensor cooling water/air inlet temperature at part load condition C | B21: ϑcond;in;C | C21: °C | D21: =Method_input!D44 -> 22 | E21: =Method_input!E44 -> 22 | F21: EN 14825 | G21: No | J21: 0 | K21: 0 | L21: -1018.84965 | M21: 0 | N21: 1018.84965 | P21: 0.09005776184
A22: Energy efficiency at part load condition D | B22: EERD | C22: - | D22: =Method_input!D45 -> 4.85 | E22: =Method_input!E45 -> 4 | F22: EN 14825 | G22: No
A23: Part load ratio D | B23: fC;PL;D | C23: % | D23: =Method_input!D46 -> 21 | E23: =Method_input!E46 -> 21 | F23: EN 14825 | G23: No
A24: Evaporator chilled water outlet temperature at part load condition D | B24: ϑC;evap;out;D | C24: °C | D24: =Method_input!D47 -> 7 | E24: =Method_input!E47 -> 7 | F24: EN 14825 | G24: No
A25: Condensor cooling water/air inlet temperature at part load condition D | B25: ϑcond;in;D | C25: °C | D25: =Method_input!D48 -> 18 | E25: =Method_input!E48 -> 18 | F25: EN 14825 | G25: No
A26: Part load ratio at 5th mearured point | B26: fC;PL;5 | C26: % | D26: =Method_input!D49 -> 47 | E26: =Method_input!E49 -> 47 | F26: local | G26: No
A27: Evaporator chilled water outlet temperature at 5th measured point | B27: ϑC;evap;out;5 | C27: °C | D27: =Method_input!D50 -> 7 | E27: =Method_input!E50 -> 7 | F27: local | G27: No
A28: Condensor cooling water/air inlet temperature at 5th measured point | B28: ϑcond;in;5 | C28: °C | D28: =Method_input!D51 -> 30 | E28: =Method_input!E51 -> 30 | F28: local | G28: No
A29: Energy efficiency at 5th measured point | B29: EER5 | C29: - | D29: =D18*(D21-D20)/(D13-D12) -> 3.104347826 | E29: =Method_input!E52 -> 4 | F29: Formula (2) or local
F31: Formula ref | G31: Formula
A32: Coefficient for the calculation of compression chiller characteristics | B32: C1 | C32: - | D32: =MMULT(B,P11:P15) -> 0.2441672986 | E32: =MMULT(B,Q11:Q15) -> 0.2921613629 | F32: Formula (1)
A33: Coefficient for the calculation of compression chiller characteristics | B33: C2 | C33: - | D33: -0.5400504404 | E33: -0.7270015597
A34: Coefficient for the calculation of compression chiller characteristics | B34: C3 | C34: - | D34: 0.3659948956 | E34: 0.7088461336
A35: Coefficient for the calculation of compression chiller characteristics | B35: C4 | C35: - | D35: 0.01198712172 | E35: -0.01117650241
A36: Corrective temperature difference | B36: Dϑcorr | C36: K | D36: 1.421085472e-14 | E36: 41.12283211

Sheet Process_design_data
A1: Example of process design data. In a simple structure, this can be connected directly to the "method_input" sheet where this data is required. In this example spreadsheet the "Method input" is linked to the detailed input.
A6: Process design data (qualitative)
A8: Free cooling operation possibility
A9: 1 | B9: FREE_COOL_OP | C9: =INDEX(C11:C12,A9) -> YES
A11: Free cooling possibility available (chiller can be bypassed) | C11: YES
A12: Free cooling not available | C12: NO
A15: Control of the hybrid heat rejection
A16: 1 | B16: HEAT_REJ_CTRL | C16: =INDEX(C18:C19,A16) -> TEMP
A18: Switch between dry and wet operation at a fixed outside air temperature | C18: TEMP
A19: Switch between dry and wet operation when chiller max. power at dry operation exceeded | C19: MAX_POWER

Sheet Data_catalogue_example
A1: EXAMPLE OF A PRODUCT DATA CATALOGUE Product descriptive data is used to filter the actual catalogue. Unsuitable prioducts are indicated by "Non available" The desired product in the catalogue is then selected via the main list --> alla data is available with one click. NOTE: Default data are also part of the catalogue. This sample catalogue is connected to the "Method input" sheet. NOTE: This highlights the high importance of the user interface and of a correct data input structuring. | J1: DATA FOR EACH BOILER | W1: SELECTION OF BOILERS COMPATIBLE WITH THE QUALITATIVE DESCRIPTION
A4: Product descriptive data (qualitative)
A6: Boiler use
A7: 1 | C7: BLR_USE | D7: =INDEX(D9:D11,A7) -> BLR_USE_H
A9: Heating | D9: BLR_USE_H
A10: Domestic hot water | D10: BLR_USE_DHW
A11: All | D11: BLR_USE_ALL
A14: Fuel
A15: 1 | C15: BLR_FUEL | D15: =INDEX(D17:D19,A15) -> BLR_FUEL_GAS
A16: Values
A17: Gas | D17: BLR_FUEL_GAS
A18: Oil | D18: BLR_FUEL_OIL
A19: All | D19: BLR_FUEL_ALL
A22: Boiler type, condensing / non condensing
A23: 2 | C23: BLR_COND | D23: =INDEX(D25:D26,A23) -> BLR_COND_NO
A24: Values
A25: Condensing | D25: BLR_COND_YES
A26: Non condensing | D26: BLR_COND_NO
A29: Product technical data
A31: Generator output at full load; | E31: ФPn | F31: kW | G31: 60
A34: Boiler product data | C34: BLR_DATA | D34: =INDEX(D38:D49,C36) -> BLR_DATA_GAS_LT
C36: 2
A37: Values | W37: Display ? | X37: Condensing ? | Z37: Fuel ? | AB37: Condition 3? | AD37: Condition 4?
A38: =IF(W38,B38,"NOT COMPATIBLE") -> Gas, standard, minimum value | B38: Gas, standard, minimum value | D38: BLR_DATA_GAS_STD | W38: =AND(X38,Z38,AB38,AD38) -> TRUE | X38: =$D$23=Y38 -> TRUE | Y38: BLR_COND_NO | Z38: =OR($D$15=$D$19,$D$15=AA38) -> TRUE | AA38: BLR_FUEL_GAS | AB38: TRUE | AD38: TRUE
A39: =IF(W39,B39,"NOT COMPATIBLE") -> Gas, low temperature, minimum value | B39: Gas, low temperature, minimum value | D39: BLR_DATA_GAS_LT | W39: =AND(X39,Z39,AB39,AD39) -> TRUE | X39: =$D$23=Y39 -> TRUE | Y39: BLR_COND_NO | Z39: TRUE | AA39: BLR_FUEL_GAS | AB39: TRUE | AD39: TRUE
A40: NOT COMPATIBLE | B40: Gas, Condensing, minimum value | D40: BLR_DATA_GAS_CND | W40: FALSE | X40: FALSE | Y40: BLR_COND_YES | Z40: TRUE | AA40: BLR_FUEL_GAS | AB40: TRUE | AD40: TRUE
A41: NOT COMPATIBLE | B41: Oil, standard, minimum value | D41: BLR_DATA_OIL_STD | W41: FALSE | X41: TRUE | Y41: BLR_COND_NO | Z41: FALSE | AA41: BLR_FUEL_OIL | AB41: TRUE | AD41: TRUE
A42: NOT COMPATIBLE | B42: Oil, low temperature, minimum value | D42: BLR_DATA_OIL_LT | W42: FALSE | X42: TRUE | Y42: BLR_COND_NO | Z42: FALSE | AA42: BLR_FUEL_OIL | AB42: TRUE | AD42: TRUE
A43: NOT COMPATIBLE | B43: Oil, condensing, minimum value | D43: BLR_DATA_OIL_CND | W43: FALSE | X43: FALSE | Y43: BLR_COND_YES | Z43: FALSE | AA43: BLR_FUEL_OIL | AB43: TRUE | AD43: TRUE
A44: NOT COMPATIBLE | B44: Default national: 1 - old oil boiler | D44: BLR_DATA_NAT_1 | W44: FALSE | X44: TRUE | Y44: BLR_COND_NO | Z44: FALSE | AA44: BLR_FUEL_OIL | AB44: TRUE | AD44: TRUE
A45: Default national: 2 - old gas boiler | B45: Default national: 2 - old gas boiler | D45: BLR_DATA_NAT_2 | W45: TRUE | X45: TRUE | Y45: BLR_COND_NO | Z45: TRUE | AA45: BLR_FUEL_GAS | AB45: TRUE | AD45: TRUE
A46: Default national: 3 - new boiler | B46: Default national: 3 - new boiler | D46: BLR_DATA_NAT_3 | W46: TRUE | X46: TRUE | Y46: BLR_COND_NO | Z46: TRUE | AA46: BLR_FUEL_GAS | AB46: TRUE | AD46: TRUE
A47: Make 1 boiler 1 gas (catalogue) | B47: Make 1 boiler 1 gas (catalogue) | D47: BLR_DATA_CAT_01 | W47: TRUE | X47: TRUE | Y47: BLR_COND_NO | Z47: TRUE | AA47: BLR_FUEL_GAS | AB47: TRUE | AD47: TRUE
A48: NOT COMPATIBLE | B48: Make 1 boiler 2 oil (catalogue) | D48: BLR_DATA_CAT_02 | W48: FALSE | X48: TRUE | Y48: BLR_COND_NO | Z48: FALSE | AA48: BLR_FUEL_OIL | AB48: TRUE | AD48: TRUE
A49: Custom values | B49: Custom values | D49: BLR_DATA_USR | W49: TRUE | X49: TRUE | Y49: BLR_COND_NO | Z49: TRUE | AA49: BLR_FUEL_GAS | AB49: TRUE | AD49: TRUE
A52: System design data
A54: Localisation | C54: LOC | D54: =INDEX(D57:D60,C55) -> LOC_INT
C55: 1
A56: Values
A57: Heated space | D57: LOC_INT
A58: Unheated space | D58: LOC_UNH
A59: Boiler room | D59: LOC_BLR
A60: External | D60: LOC_EXT
A63: Operating conditions
A66: Direct connection
A67: Independent flow rate
A68: Heat exchanger
A69: Last option
A72: Description | C72: Variable TAG | D72: Option tag | E72: Symbol | F72: Unit | G72: Value | H72: Range | J72: =+D38 -> BLR_DATA_GAS_STD | K72: =+D39 -> BLR_DATA_GAS_LT | L72: =+D40 -> BLR_DATA_GAS_CND | M72: =+D41 -> BLR_DATA_OIL_STD | N72: =+D42 -> BLR_DATA_OIL_LT | O72: =+D43 -> BLR_DATA_OIL_CND | P72: =+D44 -> BLR_DATA_NAT_1 | Q72: =+D45 -> BLR_DATA_NAT_2 | R72: =+D46 -> BLR_DATA_NAT_3 | S72: =+D47 -> BLR_DATA_CAT_01 | T72: =+D48 -> BLR_DATA_CAT_02 | U72: =+D49 -> BLR_DATA_USR
A73: generator output at full load; | E73: ФPn | F73: kW | G73: =INDEX(J73:U73,1,$C$36) -> 60 | J73: =+$G$31 -> 60 | K73: 60 | L73: 60 | M73: 60 | N73: 60 | O73: 60 | P73: 60 | Q73: 60 | R73: 60 | S73: 45 | T73: 30 | U73: =+$G$31 -> 60
A74: Boiler type | G74: =INDEX(J74:U74,1,$C$36) -> BLR_COND_NO | J74: BLR_COND_NO | K74: BLR_COND_NO | L74: BLR_COND_YES | M74: BLR_COND_NO | N74: BLR_COND_NO | O74: BLR_COND_YES | P74: BLR_COND_NO | Q74: BLR_COND_NO | R74: BLR_COND_NO | S74: BLR_COND_NO | T74: BLR_COND_NO | U74: BLR_COND_YES
A75: Fuel type | G75: =INDEX(J75:U75,1,$C$36) -> BLR_FUEL_GAS | J75: BLR_FUEL_GAS | K75: BLR_FUEL_GAS | L75: BLR_FUEL_GAS | M75: BLR_FUEL_OIL | N75: BLR_FUEL_OIL | O75: BLR_FUEL_OIL | P75: BLR_FUEL_OIL | Q75: BLR_FUEL_GAS | R75: BLR_FUEL_GAS | S75: BLR_FUEL_GAS | T75: BLR_FUEL_OIL | U75: BLR_FUEL_GAS
A76: CE marking | G76: =INDEX(J76:U76,1,$C$36) -> BLR_CE_YES | J76: BLR_CE_YES | K76: BLR_CE_YES | L76: BLR_CE_YES | M76: BLR_CE_YES | N76: BLR_CE_YES | O76: BLR_CE_YES | P76: BLR_CE_YES | Q76: BLR_CE_YES | R76: BLR_CE_YES | S76: BLR_CE_YES | T76: BLR_CE_NO | U76: BLR_CE_YES
A77: Limited power | E77: ФPn,ltd | F77: kW | J77: =IF(J73>400,400,J73) -> 60 | K77: =IF(K73>400,400,K73) -> 60 | L77: 60 | M77: 60 | N77: 60 | O77: 60 | P77: 60 | Q77: 60 | R77: 60 | S77: 45 | T77: 30 | U77: 60
E78: C1 | F78: % | J78: 85 | K78: 88 | L78: 94 | M78: 85 | N78: 88 | O78: 94 | P78: 92 | Q78: 91 | R78: 93
E79: C2 | F79: % | J79: 2 | K79: 1.5 | L79: 1 | M79: 2 | N79: 1.5 | O79: 1 | P79: 0 | Q79: 0 | R79: 0
A80: generator efficiency at full load; | E80: ηgnr,Pn | F80: % | G80: =INDEX(J80:U80,1,$C$36) -> 90.66722688 | J80: =J78+J79*LOG10(J77) -> 88.5563025 | K80: =K78+K79*LOG10(K77) -> 90.66722688 | L80: 95.77815125 | M80: 88.5563025 | N80: 90.66722688 | O80: 95.77815125 | P80: 92 | Q80: 91 | R80: 93 | S80: 94 | T80: 92 | U80: 93
A81: generator output at intermediate load; | E81: ФPint | F81: kW | G81: =INDEX(J81:U81,1,$C$36) -> 18 | J81: =+J73*0.3 -> 18 | K81: =+K73*0.3 -> 18 | L81: 18 | M81: =+M73*0.3 -> 18 | N81: =+N73*0.3 -> 18 | O81: =+O73*0.3 -> 18 | P81: 18 | Q81: 18 | R81: 18 | S81: 13.5 | T81: 9 | U81: 18
E82: C3 | F82: % | J82: 81.5 | K82: 89 | L82: 98 | M82: 81.5 | N82: 89 | O82: =98/1.05 -> 93.33333333 | P82: 90 | Q82: 89 | R82: 91
E83: C4 | F83: % | J83: 3 | K83: 1.5 | L83: 1 | M83: 3 | N83: 1.5 | O83: =1/1.05 -> 0.9523809524 | P83: 0 | Q83: 0 | R83: 0
A84: generator efficiency at intermediate load; | E84: ηgnr,Pint | F84: % | G84: =INDEX(J84:U84,1,$C$36) -> 91.66722688 | J84: =J82+J83*LOG10(J77) -> 86.83445375 | K84: =K82+K83*LOG10(K77) -> 91.66722688 | L84: 99.77815125 | M84: 86.83445375 | N84: 91.66722688 | O84: 95.02681071 | P84: 90 | Q84: 89 | R84: 91 | S84: 94 | T84: 92 | U84: 93
E85: C5 | F85: % | J85: 8.5 | K85: 5 | L85: 4.8 | M85: 8.5 | N85: 5 | O85: 4.8 | P85: 5 | Q85: 5 | R85: 5
E86: C6 | F86: % | J86: -0.4 | K86: -0.35 | L86: -0.35 | M86: -0.4 | N86: -0.35 | O86: -0.35 | P86: -0.35 | Q86: -0.35 | R86: -0.35
A87: stand-by heat loss at test temperature difference Dθi,test; | E87: Фgnr,ls,P0 | F87: kW | G87: =INDEX(J87:U87,1,$C$36) -> 0.7157614713 | J87: =+J73*(J85/100)*(J73^J86) -> 0.9915387147 | K87: 0.7157614713 | L87: 0.6871310125 | M87: =+M73*(M85/100)*(M73^M86) -> 0.9915387147 | N87: =+N73*(N85/100)*(N73^N86) -> 0.7157614713 | O87: =+O73*(O85/100)*(O73^O86) -> 0.6871310125 | P87: 0.7157614713 | Q87: 0.7157614713 | R87: 0.7157614713 | S87: 0.5 | T87: 0.6 | U87: 0.4
E88: C7 | F88: W | J88: 0 | K88: 0 | L88: 0 | M88: 0 | N88: 0 | O88: 0 | P88: 0 | Q88: 0 | R88: 0
E89: C8 | F89: W | J89: 45 | K89: 45 | L89: 45 | M89: 45 | N89: 45 | O89: 45 | P89: 45 | Q89: 45 | R89: 45
E90: n | F90: - | J90: 0.48 | K90: 0.48 | L90: 0.48 | M90: 0.48 | N90: 0.48 | O90: 0.48 | P90: 0.48 | Q90: 0.48 | R90: 0.48
A91: power consumption of auxiliary devices at full load; | E91: Paux,gnr,Pn | F91: kW | G91: =INDEX(J91:U91,1,$C$36) -> 0.3211627101 | J91: =(+J88+J89*J73^J90)/1000 -> 0.3211627101 | K91: 0.3211627101 | L91: 0.3211627101 | M91: =(+M88+M89*M73^M90)/1000 -> 0.3211627101 | N91: =(+N88+N89*N73^N90)/1000 -> 0.3211627101 | O91: =(+O88+O89*O73^O90)/1000 -> 0.3211627101 | P91: 0.3211627101 | Q91: 0.3211627101 | R91: 0.3211627101 | S91: 0.3 | T91: 0.4 | U91: 0.6
E92: C7 | F92: W | J92: 0 | K92: 0 | L92: 0 | M92: 0 | N92: 0 | O92: 0 | P92: 0 | Q92: 0 | R92: 0
E93: C8 | F93: W | J93: 15 | K93: 15 | L93: 15 | M93: 15 | N93: 15 | O93: 15 | P93: 15 | Q93: 15 | R93: 15
E94: n | F94: - | J94: 0.48 | K94: 0.48 | L94: 0.48 | M94: 0.48 | N94: 0.48 | O94: 0.48 | P94: 0.48 | Q94: 0.48 | R94: 0.48
A95: power consumption of auxiliary devices at intermediate load; | E95: Paux,gnr,Pint | F95: kW | G95: =INDEX(J95:U95,1,$C$36) -> 0.06006508023 | J95: =(+J92+J93*J81^J94)/1000 -> 0.06006508023 | K95: 0.06006508023 | L95: 0.06006508023 | M95: =(+M92+M93*M81^M94)/1000 -> 0.06006508023 | N95: =(+N92+N93*N81^N94)/1000 -> 0.06006508023 | O95: =(+O92+O93*O81^O94)/1000 -> 0.06006508023 | P95: 0.06006508023 | Q95: 0.06006508023 | R95: 0.06006508023 | S95: 0.1 | T95: 0.07 | U95: 0.05
E96: C7 | F96: W | J96: 15 | K96: 15 | L96: 15 | M96: 15 | N96: 15 | O96: 15 | P96: 15 | Q96: 15 | R96: 15
E97: C8 | F97: W | J97: 0 | K97: 0 | L97: 0 | M97: 0 | N97: 0 | O97: 0 | P97: 0 | Q97: 0 | R97: 0
E98: n | F98: - | J98: 0 | K98: 0 | L98: 0 | M98: 0 | N98: 0 | O98: 0 | P98: 0 | Q98: 0 | R98: 0
A99: stand-by power consumption of auxiliary devices; | E99: Paux,gnr,P0 | F99: kW | G99: =INDEX(J99:U99,1,$C$36) -> 0.015 | J99: =(+J96+J97*J85^J98)/1000 -> 0.015 | K99: 0.015 | L99: 0.015 | M99: 0.015 | N99: 0.015 | O99: 0.015 | P99: 0.015 | Q99: 0.015 | R99: 0.015 | S99: 0 | T99: 0 | U99: 0
A100: auxiliary power when the generation system is inactive | E100: Paux,off | F100: kW | G100: =INDEX(J100:U100,1,$C$36) -> 0 | J100: 0 | K100: 0 | L100: 0 | M100: 0 | N100: 0 | O100: 0 | P100: 0 | Q100: 0 | R100: 0 | S100: 0 | T100: 0 | U100: 0
A101: minimum operating boiler temperature. | E101: θgnr,min | F101: °C | G101: =INDEX(J101:U101,1,$C$36) -> 30 | J101: 50 | K101: 30 | L101: 0 | M101: 50 | N101: 30 | O101: 0 | P101: 50 | Q101: 50 | R101: 50 | S101: 50 | T101: 50 | U101: 50
A102: Recoverable fraction of stand-by losses | E102: fgnr,env | F102: - | G102: =INDEX(J102:U102,1,$C$36) -> 0.5 | J102: 0.5 | K102: 0.5 | L102: 0.5 | M102: 0.5 | N102: 0.5 | O102: 0.5 | P102: 0.5 | Q102: 0.5 | R102: 0.5 | S102: 0.5 | T102: 0.5 | U102: 0.5
A104: correction factor of full-load efficiency; | E104: fcorr,Pn | F104: - | G104: =INDEX(J104:U104,1,$C$36) -> 0.04 | J104: 0.04 | K104: 0.04 | L104: 0.2 | M104: 0.04 | N104: 0.04 | O104: 0.2 | P104: 0.04 | Q104: 0.04 | R104: 0.1 | S104: 0.04 | T104: 0.04 | U104: 0.04
A105: correction factor of intermediate load efficiency; | E105: fcorr,Pint | F105: - | G105: =INDEX(J105:U105,1,$C$36) -> 0.05 | J105: 0.05 | K105: 0.05 | L105: 0.2 | M105: 0.05 | N105: 0.05 | O105: 0.2 | P105: 0.05 | Q105: 0.05 | R105: 0.05 | S105: 0.05 | T105: 0.05 | U105: 0.05
A107: generator average water temperature at test conditions for full load; | E107: θgnr,test,Pn | F107: °C | G107: =INDEX(J107:U107,1,$C$36) -> 70 | J107: 70 | K107: 70 | L107: 70 | M107: 70 | N107: 70 | O107: 70 | P107: 70 | Q107: 70 | R107: 70 | S107: 70 | T107: 70 | U107: 70
A108: generator average water temperature at test conditions for intermediate load; | E108: θgnr,test,Pint | F108: °C | G108: =INDEX(J108:U108,1,$C$36) -> 40 | J108: 50 | K108: 40 | L108: 30 | M108: 50 | N108: 40 | O108: 30 | P108: 50 | Q108: 50 | R108: 50 | S108: 50 | T108: 50 | U108: 50
A109: difference between mean boiler temperature and test room temperature in test conditions; | E109: Dθtest,P0 | F109: °C | G109: =INDEX(J109:U109,1,$C$36) -> 50 | J109: 50 | K109: 50 | L109: 50 | M109: 50 | N109: 50 | O109: 50 | P109: 50 | Q109: 50 | R109: 50 | S109: 50 | T109: 50 | U109: 50
A111: part of the auxiliary energy recovered | E111: frvd,aux | F111: - | G111: =INDEX(J111:U111,1,$C$36) -> 0.75 | J111: 0.75 | K111: 0.75 | L111: 0.75 | M111: 0.75 | N111: 0.75 | O111: 0.75 | P111: 0.75 | Q111: 0.75 | R111: 0.75 | S111: 0.75 | T111: 0.75 | U111: 0.75
A112: part of the nominal electrical power not transmitted to the distribution sub-system | E112: frbl,aux | F112: - | G112: =INDEX(J112:U112,1,$C$36) -> 0.25 | J112: 0.25 | K112: 0.25 | L112: 0.25 | M112: 0.25 | N112: 0.25 | O112: 0.25 | P112: 0.25 | Q112: 0.25 | R112: 0.25 | S112: 0.25 | T112: 0.25 | U112: 0.25
A117: System design data
A118: Installation room temperature; | E118: qi,brm | F118: °C | G118: 15
A119: Temperature reduction factor of install. room | E119: bbrm | F119: - | G119: 0.7

Sheet Input_series
A1: Load here the value of input variables for each time-step (time series) Set the number of input data for each time steps and the number of time step before running The macro from sheet "Output series". Local constant data may be input via the sheets "Constants"
A3: Time series for data input
A4: Settings
A5: Number of input data | C5: 16
A6: Number of time steps | C6: 72
A8: Description | B8: Calculation time interval | C8: Ambient air temperature | D8: Ambient air wet-bulb temperature | E8: Required cooling energy to be extracted by the generation system | F8: Required generation outlet temperature | G8: Recovered heat of the cooling generation system | H8: Absorption cooling generation heat input | I8: Supply temperature of absorption generation heat input | J8: Temperature difference due to the heat losses in the heat rejection circuit | K8: Heat losses in the heat rejection circuit | L8: Auxiliary energy consumption in the heat rejection circuit | M8: Priority for operation of generator j=1 | N8: Priority for operation of generator j=2 | O8: Sink temperature for generator type OTHER | P8: Cooling operation factor | Q8: Operation factor of the control devices
A9: Symbol | B9: tc,i | C9: ϑe | D9: ϑe,wb | E9: QC;gen;in;req | F9: ϑC;gen;out;req | G9: QC;gen;out;rd | H9: QH;C;gen;abs;in | I9: ϑH;C;gen;abs;in | J9: DJls;dis;hr; | K9: Qls;dis;hr; | L9: Waux;dis;hr; | M9: p | N9: p | O9: ϑsk | P9: fop;C | Q9: fop;ctrl
A10: Unit | B10: h | C10: °C | D10: °C | E10: kWh | F10: °C | G10: kWh | H10: kWh | I10: °C | J10: K | K10: kWh | L10: kWh | M10: - | N10: - | O10: °C | P10: - | Q10: -
A11: Origin | B11: M1-9 | C11: M1-13 | D11: M1-13 | E11: M4-1/ M4-7 | F11: M4-1/ M4-7 | G11: M3-1 | H11: M3-1 | I11: M3-1 | J11: M4-6 | K11: M4-6 | L11: M4-6 | M11: M10-12 | N11: M10-12 | O11: local | P11: local | Q11: local
A13: Time stamp | D13: VALUES
A14: 1 | B14: 1 | C14: 14.2 | D14: 12.3 | E14: 7.677915 | F14: 14 | G14: 0 | H14: =Output_series!H18 -> 0 | I14: 85 | J14: 1 | K14: 2 | L14: 0.5 | M14: 2 | N14: 1 | O14: 15 | P14: 1 | Q14: 1
A15: 2 | B15: 1 | C15: 13.3 | D15: 11.7 | E15: 7.657863 | F15: 14 | G15: 0 | H15: =Output_series!H19 -> 0 | I15: 85 | J15: 1 | K15: 2 | L15: 0.5 | M15: 2 | N15: 1 | O15: 15 | P15: 1 | Q15: 1
A16: 3 | B16: 1 | C16: 12.8 | D16: 11.2 | E16: 7.658329 | F16: 14 | G16: 0 | H16: =Output_series!H20 -> 0 | I16: 85 | J16: 1 | K16: 2 | L16: 0.5 | M16: 2 | N16: 1 | O16: 15 | P16: 1 | Q16: 1
A17: 4 | B17: 1 | C17: 11.9 | D17: 10.9 | E17: 7.655229 | F17: 14 | G17: 0 | H17: =Output_series!H21 -> 0 | I17: 85 | J17: 1 | K17: 2 | L17: 0.5 | M17: 2 | N17: 1 | O17: 15 | P17: 1 | Q17: 1
A18: 5 | B18: 1 | C18: 12.1 | D18: 11.2 | E18: 7.655689 | F18: 14 | G18: 0 | H18: =Output_series!H22 -> 0 | I18: 85 | J18: 1 | K18: 2 | L18: 0.5 | M18: 2 | N18: 1 | O18: 15 | P18: 1 | Q18: 1
A19: 6 | B19: 1 | C19: 14.8 | D19: 12.5 | E19: 7.680578 | F19: 14 | G19: 0 | H19: =Output_series!H23 -> 0 | I19: 85 | J19: 1 | K19: 2 | L19: 0.5 | M19: 2 | N19: 1 | O19: 15 | P19: 1 | Q19: 1
A20: 7 | B20: 1 | C20: 17.6 | D20: 13.5 | E20: 24.94371 | F20: 14 | G20: 0 | H20: =Output_series!H24 -> 0 | I20: 85 | J20: 1 | K20: 2 | L20: 0.5 | M20: 2 | N20: 1 | O20: 15 | P20: 1 | Q20: 1
A21: 8 | B21: 1 | C21: 20 | D21: 14.1 | E21: 8.237313 | F21: 14 | G21: 0 | H21: =Output_series!H25 -> 0 | I21: 85 | J21: 1 | K21: 2 | L21: 0.5 | M21: 2 | N21: 1 | O21: 15 | P21: 1 | Q21: 1
A22: 9 | B22: 1 | C22: 21.9 | D22: 15 | E22: 32.80547 | F22: 14 | G22: 0 | H22: =Output_series!H26 -> 0 | I22: 85 | J22: 1 | K22: 2 | L22: 0.5 | M22: 2 | N22: 1 | O22: 15 | P22: 1 | Q22: 1
A23: 10 | B23: 1 | C23: 24.2 | D23: 16.2 | E23: 54.28304 | F23: 14 | G23: 0 | H23: =Output_series!H27 -> 0 | I23: 85 | J23: 1 | K23: 2 | L23: 0.5 | M23: 2 | N23: 1 | O23: 15 | P23: 1 | Q23: 1
A24: 11 | B24: 1 | C24: 26 | D24: 17 | E24: 83.53618 | F24: 14 | G24: 0 | H24: =Output_series!H28 -> 0 | I24: 85 | J24: 1 | K24: 2 | L24: 0.5 | M24: 2 | N24: 1 | O24: 15 | P24: 1 | Q24: 1
A25: 12 | B25: 1 | C25: 28.4 | D25: 17.7 | E25: 121.3237 | F25: 14 | G25: 0 | H25: =Output_series!H29 -> 0 | I25: 85 | J25: 1 | K25: 2 | L25: 0.5 | M25: 2 | N25: 1 | O25: 15 | P25: 1 | Q25: 1
A26: 13 | B26: 1 | C26: 30 | D26: 17.4 | E26: 83.93857 | F26: 14 | G26: 0 | H26: =Output_series!H30 -> 0 | I26: 85 | J26: 1 | K26: 2 | L26: 0.5 | M26: 2 | N26: 1 | O26: 15 | P26: 1 | Q26: 1
A27: 14 | B27: 1 | C27: 31.1 | D27: 17 | E27: 96.63897 | F27: 14 | G27: 0 | H27: =Output_series!H31 -> 0 | I27: 85 | J27: 1 | K27: 2 | L27: 0.5 | M27: 2 | N27: 1 | O27: 15 | P27: 1 | Q27: 1
A28: 15 | B28: 1 | C28: 32.3 | D28: 16.5 | E28: 126.8655 | F28: 14 | G28: 0 | H28: =Output_series!H32 -> 0 | I28: 85 | J28: 1 | K28: 2 | L28: 0.5 | M28: 2 | N28: 1 | O28: 15 | P28: 1 | Q28: 1
A29: 16 | B29: 1 | C29: 32.6 | D29: 16.6 | E29: 83.3623 | F29: 14 | G29: 0 | H29: =Output_series!H33 -> 0 | I29: 85 | J29: 1 | K29: 2 | L29: 0.5 | M29: 2 | N29: 1 | O29: 15 | P29: 1 | Q29: 1
A30: 17 | B30: 1 | C30: 32.7 | D30: 16.5 | E30: 64.91024 | F30: 14 | G30: 0 | H30: =Output_series!H34 -> 0 | I30: 85 | J30: 1 | K30: 2 | L30: 0.5 | M30: 2 | N30: 1 | O30: 15 | P30: 1 | Q30: 1
A31: 18 | B31: 1 | C31: 31.2 | D31: 18.1 | E31: 47.64117 | F31: 14 | G31: 0 | H31: =Output_series!H35 -> 0 | I31: 85 | J31: 1 | K31: 2 | L31: 0.5 | M31: 2 | N31: 1 | O31: 15 | P31: 1 | Q31: 1
A32: 19 | B32: 1 | C32: 27.9 | D32: 17.9 | E32: 37.94049 | F32: 14 | G32: 0 | H32: =Output_series!H36 -> 0 | I32: 85 | J32: 1 | K32: 2 | L32: 0.5 | M32: 2 | N32: 1 | O32: 15 | P32: 1 | Q32: 1
A33: 20 | B33: 1 | C33: 24.4 | D33: 17.2 | E33: 8.732144 | F33: 14 | G33: 0 | H33: =Output_series!H37 -> 0 | I33: 85 | J33: 1 | K33: 2 | L33: 0.5 | M33: 2 | N33: 1 | O33: 15 | P33: 1 | Q33: 1
A34: 21 | B34: 1 | C34: 21.1 | D34: 16.6 | E34: 8.173324 | F34: 14 | G34: 0 | H34: =Output_series!H38 -> 0 | I34: 85 | J34: 1 | K34: 2 | L34: 0.5 | M34: 2 | N34: 1 | O34: 15 | P34: 1 | Q34: 1
A35: 22 | B35: 1 | C35: 19.2 | D35: 15.8 | E35: 7.943582 | F35: 14 | G35: 0 | H35: =Output_series!H39 -> 0 | I35: 85 | J35: 1 | K35: 2 | L35: 0.5 | M35: 2 | N35: 1 | O35: 15 | P35: 1 | Q35: 1
A36: 23 | B36: 1 | C36: 18.1 | D36: 15.6 | E36: 7.765616 | F36: 14 | G36: 0 | H36: =Output_series!H40 -> 0 | I36: 85 | J36: 1 | K36: 2 | L36: 0.5 | M36: 2 | N36: 1 | O36: 15 | P36: 1 | Q36: 1
A37: 24 | B37: 1 | C37: 17 | D37: 15.1 | E37: 7.724501 | F37: 14 | G37: 0 | H37: =Output_series!H41 -> 0 | I37: 85 | J37: 1 | K37: 2 | L37: 0.5 | M37: 2 | N37: 1 | O37: 15 | P37: 1 | Q37: 1
A38: 25 | B38: 1 | C38: 17.7 | D38: 17 | E38: 7.70712 | F38: 14 | G38: 0 | H38: =Output_series!H42 -> 0 | I38: 85 | J38: 1 | K38: 2 | L38: 0.5 | M38: 2 | N38: 1 | O38: 15 | P38: 1 | Q38: 1
A39: 26 | B39: 1 | C39: 17 | D39: 16.4 | E39: 7.707079 | F39: 14 | G39: 0 | H39: =Output_series!H43 -> 0 | I39: 85 | J39: 1 | K39: 2 | L39: 0.5 | M39: 2 | N39: 1 | O39: 15 | P39: 1 | Q39: 1
A40: 27 | B40: 1 | C40: 16.6 | D40: 16.1 | E40: 7.69638 | F40: 14 | G40: 0 | H40: =Output_series!H44 -> 0 | I40: 85 | J40: 1 | K40: 2 | L40: 0.5 | M40: 2 | N40: 1 | O40: 15 | P40: 1 | Q40: 1
A41: 28 | B41: 1 | C41: 16.2 | D41: 15.6 | E41: 7.691023 | F41: 14 | G41: 0 | H41: =Output_series!H45 -> 0 | I41: 85 | J41: 1 | K41: 2 | L41: 0.5 | M41: 2 | N41: 1 | O41: 15 | P41: 1 | Q41: 1
A42: 29 | B42: 1 | C42: 15.8 | D42: 15.2 | E42: 7.688334 | F42: 14 | G42: 0 | H42: =Output_series!H46 -> 0 | I42: 85 | J42: 1 | K42: 2 | L42: 0.5 | M42: 2 | N42: 1 | O42: 15 | P42: 1 | Q42: 1
A43: 30 | B43: 1 | C43: 16.6 | D43: 16 | E43: 7.702153 | F43: 14 | G43: 0 | H43: =Output_series!H47 -> 0 | I43: 85 | J43: 1 | K43: 2 | L43: 0.5 | M43: 2 | N43: 1 | O43: 15 | P43: 1 | Q43: 1
A44: 31 | B44: 1 | C44: 18.7 | D44: 17.3 | E44: 17.01632 | F44: 14 | G44: 0 | H44: =Output_series!H48 -> 0 | I44: 85 | J44: 1 | K44: 2 | L44: 0.5 | M44: 2 | N44: 1 | O44: 15 | P44: 1 | Q44: 1
A45: 32 | B45: 1 | C45: 21.2 | D45: 18.4 | E45: 9.016559 | F45: 14 | G45: 0 | H45: =Output_series!H49 -> 0 | I45: 85 | J45: 1 | K45: 2 | L45: 0.5 | M45: 2 | N45: 1 | O45: 15 | P45: 1 | Q45: 1
A46: 33 | B46: 1 | C46: 23.7 | D46: 19.6 | E46: 30.87032 | F46: 14 | G46: 0 | H46: =Output_series!H50 -> 0 | I46: 85 | J46: 1 | K46: 2 | L46: 0.5 | M46: 2 | N46: 1 | O46: 15 | P46: 1 | Q46: 1
A47: 34 | B47: 1 | C47: 25.8 | D47: 20.3 | E47: 52.22582 | F47: 14 | G47: 0 | H47: =Output_series!H51 -> 0 | I47: 85 | J47: 1 | K47: 2 | L47: 0.5 | M47: 2 | N47: 1 | O47: 15 | P47: 1 | Q47: 1
A48: 35 | B48: 1 | C48: 27.3 | D48: 20.9 | E48: 84.88056 | F48: 14 | G48: 0 | H48: =Output_series!H52 -> 0 | I48: 85 | J48: 1 | K48: 2 | L48: 0.5 | M48: 2 | N48: 1 | O48: 15 | P48: 1 | Q48: 1
A49: 36 | B49: 1 | C49: 28.8 | D49: 21 | E49: 126.2893 | F49: 14 | G49: 0 | H49: =Output_series!H53 -> 0 | I49: 85 | J49: 1 | K49: 2 | L49: 0.5 | M49: 2 | N49: 1 | O49: 15 | P49: 1 | Q49: 1
A50: 37 | B50: 1 | C50: 30.3 | D50: 21.3 | E50: 90.22283 | F50: 14 | G50: 0 | H50: =Output_series!H54 -> 0 | I50: 85 | J50: 1 | K50: 2 | L50: 0.5 | M50: 2 | N50: 1 | O50: 15 | P50: 1 | Q50: 1
A51: 38 | B51: 1 | C51: 31.5 | D51: 20.9 | E51: 103.1213 | F51: 14 | G51: 0 | H51: =Output_series!H55 -> 0 | I51: 85 | J51: 1 | K51: 2 | L51: 0.5 | M51: 2 | N51: 1 | O51: 15 | P51: 1 | Q51: 1
A52: 39 | B52: 1 | C52: 32.4 | D52: 21 | E52: 126.6562 | F52: 14 | G52: 0 | H52: =Output_series!H56 -> 0 | I52: 85 | J52: 1 | K52: 2 | L52: 0.5 | M52: 2 | N52: 1 | O52: 15 | P52: 1 | Q52: 1
A53: 40 | B53: 1 | C53: 32.4 | D53: 20.6 | E53: 84.22969 | F53: 14 | G53: 0 | H53: =Output_series!H57 -> 0 | I53: 85 | J53: 1 | K53: 2 | L53: 0.5 | M53: 2 | N53: 1 | O53: 15 | P53: 1 | Q53: 1
A54: 41 | B54: 1 | C54: 32.6 | D54: 20.3 | E54: 66.01652 | F54: 14 | G54: 0 | H54: =Output_series!H58 -> 0 | I54: 85 | J54: 1 | K54: 2 | L54: 0.5 | M54: 2 | N54: 1 | O54: 15 | P54: 1 | Q54: 1
A55: 42 | B55: 1 | C55: 29.9 | D55: 22 | E55: 46.90479 | F55: 14 | G55: 0 | H55: =Output_series!H59 -> 0 | I55: 85 | J55: 1 | K55: 2 | L55: 0.5 | M55: 2 | N55: 1 | O55: 15 | P55: 1 | Q55: 1
A56: 43 | B56: 1 | C56: 27.4 | D56: 20.7 | E56: 31.43086 | F56: 14 | G56: 0 | H56: =Output_series!H60 -> 0 | I56: 85 | J56: 1 | K56: 2 | L56: 0.5 | M56: 2 | N56: 1 | O56: 15 | P56: 1 | Q56: 1
A57: 44 | B57: 1 | C57: 24.2 | D57: 20.2 | E57: 8.441893 | F57: 14 | G57: 0 | H57: =Output_series!H61 -> 0 | I57: 85 | J57: 1 | K57: 2 | L57: 0.5 | M57: 2 | N57: 1 | O57: 15 | P57: 1 | Q57: 1
A58: 45 | B58: 1 | C58: 22.4 | D58: 19.4 | E58: 8.123329 | F58: 14 | G58: 0 | H58: =Output_series!H62 -> 0 | I58: 85 | J58: 1 | K58: 2 | L58: 0.5 | M58: 2 | N58: 1 | O58: 15 | P58: 1 | Q58: 1
A59: 46 | B59: 1 | C59: 21.2 | D59: 19.3 | E59: 7.871235 | F59: 14 | G59: 0 | H59: =Output_series!H63 -> 0 | I59: 85 | J59: 1 | K59: 2 | L59: 0.5 | M59: 2 | N59: 1 | O59: 15 | P59: 1 | Q59: 1
A60: 47 | B60: 1 | C60: 20.2 | D60: 18.7 | E60: 7.735346 | F60: 14 | G60: 0 | H60: =Output_series!H64 -> 0 | I60: 85 | J60: 1 | K60: 2 | L60: 0.5 | M60: 2 | N60: 1 | O60: 15 | P60: 1 | Q60: 1
A61: 48 | B61: 1 | C61: 19.4 | D61: 18.3 | E61: 7.719537 | F61: 14 | G61: 0 | H61: =Output_series!H65 -> 0 | I61: 85 | J61: 1 | K61: 2 | L61: 0.5 | M61: 2 | N61: 1 | O61: 15 | P61: 1 | Q61: 1
A62: 49 | B62: 1 | C62: 17.6 | D62: 15.1 | E62: 7.648576 | F62: 14 | G62: 0 | H62: =Output_series!H66 -> 0 | I62: 85 | J62: 1 | K62: 2 | L62: 0.5 | M62: 2 | N62: 1 | O62: 15 | P62: 1 | Q62: 1
A63: 50 | B63: 1 | C63: 17.3 | D63: 15.1 | E63: 7.642499 | F63: 14 | G63: 0 | H63: =Output_series!H67 -> 0 | I63: 85 | J63: 1 | K63: 2 | L63: 0.5 | M63: 2 | N63: 1 | O63: 15 | P63: 1 | Q63: 1
A64: 51 | B64: 1 | C64: 16.5 | D64: 14.8 | E64: 7.633386 | F64: 14 | G64: 0 | H64: =Output_series!H68 -> 0 | I64: 85 | J64: 1 | K64: 2 | L64: 0.5 | M64: 2 | N64: 1 | O64: 15 | P64: 1 | Q64: 1
A65: 52 | B65: 1 | C65: 15.8 | D65: 14.5 | E65: 7.627799 | F65: 14 | G65: 0 | H65: =Output_series!H69 -> 0 | I65: 85 | J65: 1 | K65: 2 | L65: 0.5 | M65: 2 | N65: 1 | O65: 15 | P65: 1 | Q65: 1
A66: 53 | B66: 1 | C66: 15.2 | D66: 14.1 | E66: 7.612206 | F66: 14 | G66: 0 | H66: =Output_series!H70 -> 0 | I66: 85 | J66: 1 | K66: 2 | L66: 0.5 | M66: 2 | N66: 1 | O66: 15 | P66: 1 | Q66: 1
A67: 54 | B67: 1 | C67: 14.4 | D67: 13.7 | E67: 7.599721 | F67: 14 | G67: 0 | H67: =Output_series!H71 -> 0 | I67: 85 | J67: 1 | K67: 2 | L67: 0.5 | M67: 2 | N67: 1 | O67: 15 | P67: 1 | Q67: 1
A68: 55 | B68: 1 | C68: 14.5 | D68: 13.6 | E68: 5.524018 | F68: 14 | G68: 0 | H68: =Output_series!H72 -> 0 | I68: 85 | J68: 1 | K68: 2 | L68: 0.5 | M68: 2 | N68: 1 | O68: 15 | P68: 1 | Q68: 1
A69: 56 | B69: 1 | C69: 16.3 | D69: 14.6 | E69: 5.557772 | F69: 14 | G69: 0 | H69: =Output_series!H73 -> 0 | I69: 85 | J69: 1 | K69: 2 | L69: 0.5 | M69: 2 | N69: 1 | O69: 15 | P69: 1 | Q69: 1
A70: 57 | B70: 1 | C70: 17.8 | D70: 15.3 | E70: 5.591885 | F70: 14 | G70: 0 | H70: =Output_series!H74 -> 0 | I70: 85 | J70: 1 | K70: 2 | L70: 0.5 | M70: 2 | N70: 1 | O70: 15 | P70: 1 | Q70: 1
A71: 58 | B71: 1 | C71: 19 | D71: 15.8 | E71: 6.075607 | F71: 14 | G71: 0 | H71: =Output_series!H75 -> 0 | I71: 85 | J71: 1 | K71: 2 | L71: 0.5 | M71: 2 | N71: 1 | O71: 15 | P71: 1 | Q71: 1
A72: 59 | B72: 1 | C72: 20.5 | D72: 16 | E72: 8.91735 | F72: 14 | G72: 0 | H72: =Output_series!H76 -> 0 | I72: 85 | J72: 1 | K72: 2 | L72: 0.5 | M72: 2 | N72: 1 | O72: 15 | P72: 1 | Q72: 1
A73: 60 | B73: 1 | C73: 21.8 | D73: 16.2 | E73: 18.1411 | F73: 14 | G73: 0 | H73: =Output_series!H77 -> 0 | I73: 85 | J73: 1 | K73: 2 | L73: 0.5 | M73: 2 | N73: 1 | O73: 15 | P73: 1 | Q73: 1
A74: 61 | B74: 1 | C74: 23 | D74: 16.5 | E74: 14.57667 | F74: 14 | G74: 0 | H74: =Output_series!H78 -> 0 | I74: 85 | J74: 1 | K74: 2 | L74: 0.5 | M74: 2 | N74: 1 | O74: 15 | P74: 1 | Q74: 1
A75: 62 | B75: 1 | C75: 23.8 | D75: 16.9 | E75: 17.55609 | F75: 14 | G75: 0 | H75: =Output_series!H79 -> 0 | I75: 85 | J75: 1 | K75: 2 | L75: 0.5 | M75: 2 | N75: 1 | O75: 15 | P75: 1 | Q75: 1
A76: 63 | B76: 1 | C76: 24.3 | D76: 16.8 | E76: 27.2104 | F76: 14 | G76: 0 | H76: =Output_series!H80 -> 0 | I76: 85 | J76: 1 | K76: 2 | L76: 0.5 | M76: 2 | N76: 1 | O76: 15 | P76: 1 | Q76: 1
A77: 64 | B77: 1 | C77: 24 | D77: 16.6 | E77: 13.71071 | F77: 14 | G77: 0 | H77: =Output_series!H81 -> 0 | I77: 85 | J77: 1 | K77: 2 | L77: 0.5 | M77: 2 | N77: 1 | O77: 15 | P77: 1 | Q77: 1
A78: 65 | B78: 1 | C78: 22.1 | D78: 16.2 | E78: 8.562793 | F78: 14 | G78: 0 | H78: =Output_series!H82 -> 0 | I78: 85 | J78: 1 | K78: 2 | L78: 0.5 | M78: 2 | N78: 1 | O78: 15 | P78: 1 | Q78: 1
A79: 66 | B79: 1 | C79: 19.1 | D79: 15.2 | E79: 6.08241 | F79: 14 | G79: 0 | H79: =Output_series!H83 -> 0 | I79: 85 | J79: 1 | K79: 2 | L79: 0.5 | M79: 2 | N79: 1 | O79: 15 | P79: 1 | Q79: 1
A80: 67 | B80: 1 | C80: 16.4 | D80: 14.5 | E80: 5.589138 | F80: 14 | G80: 0 | H80: =Output_series!H84 -> 0 | I80: 85 | J80: 1 | K80: 2 | L80: 0.5 | M80: 2 | N80: 1 | O80: 15 | P80: 1 | Q80: 1
A81: 68 | B81: 1 | C81: 15.1 | D81: 14 | E81: 7.6586 | F81: 14 | G81: 0 | H81: =Output_series!H85 -> 0 | I81: 85 | J81: 1 | K81: 2 | L81: 0.5 | M81: 2 | N81: 1 | O81: 15 | P81: 1 | Q81: 1
A82: 69 | B82: 1 | C82: 14.1 | D82: 13.3 | E82: 7.650123 | F82: 14 | G82: 0 | H82: =Output_series!H86 -> 0 | I82: 85 | J82: 1 | K82: 2 | L82: 0.5 | M82: 2 | N82: 1 | O82: 15 | P82: 1 | Q82: 1
A83: 70 | B83: 1 | C83: 13.2 | D83: 12.7 | E83: 7.6362 | F83: 14 | G83: 0 | H83: =Output_series!H87 -> 0 | I83: 85 | J83: 1 | K83: 2 | L83: 0.5 | M83: 2 | N83: 1 | O83: 15 | P83: 1 | Q83: 1
A84: 71 | B84: 1 | C84: 12.3 | D84: 11.8 | E84: 7.627135 | F84: 14 | G84: 0 | H84: =Output_series!H88 -> 0 | I84: 85 | J84: 1 | K84: 2 | L84: 0.5 | M84: 2 | N84: 1 | O84: 15 | P84: 1 | Q84: 1
A85: 72 | B85: 1 | C85: 11.8 | D85: 11.4 | E85: 7.620772 | F85: 14 | G85: 0 | H85: =Output_series!H89 -> 0 | I85: 85 | J85: 1 | K85: 2 | L85: 0.5 | M85: 2 | N85: 1 | O85: 15 | P85: 1 | Q85: 1

Sheet Method_input
A1: THIS IS A MANDATORY SHEET All input data for the method shall be listed here. In the simplest version, values for data input in column D (both green and blue background) may be inserted manually. Varying data (green background) can be fed from the "input_series" sheet. In this sample data sheet, product data (blue background) is linked to a sample catalogue built in the "Detailed_input" sheet
A4: Name | B4: Symbol | C4: Unit | D4: Value | E4: Range | F4: Origin | G4: Varying | H4: Notes
A5: Operating conditions data | D5: Generator 1 | E5: Generator 2
A6: Calculation time interval | B6: tc,i | C6: h | D6: 1 | F6: M1-9 | G6: no
A7: Ambient air temperature | B7: ϑe | C7: °C | D7: 11.8 | F7: M1-13 | G7: yes
A8: Ambient air wet-bulb temperature | B8: ϑe,wb | C8: °C | D8: 11.4 | F8: M1-13 | G8: yes
A9: Required cooling energy to be extracted by the generation system | B9: QC;gen;in;req | C9: kWh | D9: 7.620772 | F9: M4-1 | G9: yes | H9: Method output (looped through, but also used in calculation)
A10: Required generation outlet temperature | B10: ϑC;gen;out;req | C10: °C | D10: 14 | F10: M4-1 | G10: yes
A11: Recovered heat of the cooling generation system | B11: QC;gen;out;rd | C11: kWh | D11: 0 | F11: M3-1 | G11: yes
A12: Absorption cooling generation heat input | B12: QH;C;gen;abs;in | C12: kWh | D12: 0 | F12: M3-1 | G12: yes | H12: Method output (looped through, but also used in calculation)
A13: Supply temperature of absorption generation heat input | B13: ϑH;C;gen;abs;in | C13: °C | D13: 85 | F13: M3-1 | G13: yes
A14: Temperature difference due to the heat losses in the heat rejection circuit | B14: DJls;dis;hr; | C14: K | D14: 1 | F14: M4-6 | G14: Yes
A15: Heat losses in the heat rejection circuit | B15: Qls;dis;hr; | C15: kWh | D15: 2 | F15: M4-6 | G15: Yes
A16: Auxiliary energy consumption in the heat rejection circuit | B16: Waux;dis;hr; | C16: kWh | D16: 0.5 | F16: M4-6 | G16: Yes
A17: Priority for operation of generator j=1 | B17: p | C17: - | D17: 2 | F17: M10-12 | G17: yes
A18: Priority for operation of generator j=2 | B18: p | C18: - | D18: 1 | F18: M10-12 | G18: yes
A19: Sink temperature for generator type OTHER | B19: ϑsk | C19: °C | D19: 15 | F19: local | G19: yes
A20: Cooling operation factor | B20: fop;C | C20: - | D20: 1 | F20: local | G20: yes
A21: Operation factor of the control devices | B21: fop;ctrl | C21: - | D21: 1 | F21: local | G21: yes
A23: Product description data
A24: Generator type | B24: GEN_TYPE | C24: List | D24: =Product_descriptive_data!C9 -> COMP | E24: =Product_descriptive_data!C17 -> COMP | F24: local | G24: No
A25: Heat rejection type | B25: HEAT_REJ_TYPE | C25: List | D25: =Product_descriptive_data!C25 -> HYBRID | F25: local | G25: No
A27: Product technical data
A28: Generator outlet temperature limit | B28: JC;gen;out;lim | C28: °C | D28: 6 | E28: 6 | F28: local | G28: No
A29: Nominal thermal power extracted from chilled water circuit | B29: ΦC;gen;n | C29: kW | D29: 100 | E29: 50 | F29: local | G29: No
A30: Nominal energy efficiency ratio | B30: EERn | C30: - | D30: 2.83 | E30: 4 | F30: EN 14511 | G30: No | H30: or default value
A31: condensor cooling water/air inlet temperature at nominal conditions | B31: ϑcond;in;n | C31: °C | D31: 30 | E31: 34 | F31: local | G31: No
A32: evaporator chilled water outlet temperature at nominal conditions | B32: ϑC;evap;out;n | C32: °C | D32: 7 | E32: 10 | F32: local | G32: No
A33: Energy efficiency at part load condition A | B33: EERA | C33: - | D33: 2.83 | E33: 4 | F33: EN 14825 | G33: No | H33: used in sheet "Product_tech_data" to calculate performance map
A34: Part load ratio A | B34: fC;PL;A | C34: % | D34: 100 | E34: 100 | F34: EN 14825 | G34: No | H34: used in sheet "Product_tech_data" to calculate performance map
A35: Evaporator chilled water outlet temperature at part load condition A | B35: ϑC; evap;out;A | C35: °C | D35: 7 | E35: 7 | F35: EN 14825 | G35: No | H35: used in sheet "Product_tech_data" to calculate performance map
A36: Condensor cooling water/air inlet temperature part load condition A | B36: ϑcond;in;A | C36: °C | D36: 30 | E36: 30 | F36: EN 14825 | G36: No | H36: used in sheet "Product_tech_data" to calculate performance map
A37: Energy efficiency at part load condition B | B37: EERB | C37: - | D37: 3.59 | E37: 4 | F37: EN 14825 | G37: No | H37: used in sheet "Product_tech_data" to calculate performance map
A38: Part load ratio B | B38: fC;PL;B | C38: % | D38: 74 | E38: 74 | F38: EN 14825 | G38: No | H38: used in sheet "Product_tech_data" to calculate performance map
A39: Evaporator chilled water outlet temperature at part load condition B | B39: ϑC;evap;out;B | C39: °C | D39: 7 | E39: 7 | F39: EN 14825 | G39: No | H39: used in sheet "Product_tech_data" to calculate performance map
A40: Condensor cooling water/air inlet temperature at part load condition B | B40: ϑcond;in;B | C40: °C | D40: 26 | E40: 26 | F40: EN 14825 | G40: No | H40: used in sheet "Product_tech_data" to calculate performance map
A41: Energy efficiency at part load condition C | B41: EERC | C41: - | D41: 4.76 | E41: 4 | F41: EN 14825 | G41: No | H41: used in sheet "Product_tech_data" to calculate performance map
A42: Part load ratio C | B42: fC;PL;C | C42: % | D42: 47 | E42: 47 | F42: EN 14825 | G42: No | H42: used in sheet "Product_tech_data" to calculate performance map
A43: Evaporator chilled water outlet temperature at part load condition C | B43: ϑC;evap;out;C | C43: °C | D43: 7 | E43: 7 | F43: EN 14825 | G43: No | H43: used in sheet "Product_tech_data" to calculate performance map
A44: Condensor cooling water/air inlet temperature at part load condition C | B44: ϑcond;in;C | C44: °C | D44: 22 | E44: 22 | F44: EN 14825 | G44: No | H44: used in sheet "Product_tech_data" to calculate performance map
A45: Energy efficiency at part load condition D | B45: EERD | C45: - | D45: 4.85 | E45: 4 | F45: EN 14825 | G45: No | H45: used in sheet "Product_tech_data" to calculate performance map
A46: Part load ratio D | B46: fC;PL;D | C46: % | D46: 21 | E46: 21 | F46: EN 14825 | G46: No | H46: used in sheet "Product_tech_data" to calculate performance map
A47: Evaporator chilled water outlet temperature at part load condition D | B47: ϑC;evap;out;D | C47: °C | D47: 7 | E47: 7 | F47: EN 14825 | G47: No | H47: used in sheet "Product_tech_data" to calculate performance map
A48: Condensor cooling water/air inlet temperature at part load condition D | B48: ϑcond;in;D | C48: °C | D48: 18 | E48: 18 | F48: EN 14825 | G48: No | H48: used in sheet "Product_tech_data" to calculate performance map
A49: Part load ratio at 5th mearured point | B49: fC;PL;5 | C49: % | D49: 47 | E49: 47 | F49: local | G49: No | H49: used in sheet "Product_tech_data" to calculate performance map
A50: Evaporator chilled water outlet temperature at 5th measured point | B50: ϑC;evap;out;5 | C50: °C | D50: 7 | E50: 7 | F50: local | G50: No | H50: used in sheet "Product_tech_data" to calculate performance map
A51: Condensor cooling water/air inlet temperature at 5th measured point | B51: ϑcond;in;5 | C51: °C | D51: 30 | E51: 30 | F51: local | G51: No | H51: used in sheet "Product_tech_data" to calculate performance map
A52: Energy efficiency at 5th measured point | B52: EER5 | C52: - | D52: =Product_tech_data!D29 -> 3.104347826 | E52: 4 | F52: Formula (2) or local | G52: No | H52: used in sheet "Product_tech_data" to calculate performance map
A53: Minimum part load ratio of the generator | B53: fC;PL;min | C53: % | D53: 25 | E53: 0 | F53: local | G53: No
A54: Coefficient for the calculation of absorption chiller characteristics | B54: C5 | C54: - | D54: -0.001428 | E54: -0.001428 | F54: local | G54: No
A55: Coefficient for the calculation of absorption chiller characteristics | B55: C6 | C55: - | D55: 0.03115 | E55: 0.03115 | F55: local | G55: No
A56: Coefficient for the calculation of absorption chiller characteristics | B56: C7 | C56: - | D56: 0.4476 | E56: 0.4476 | F56: local | G56: No
A57: condenser input limit temperature | B57: Jcond;in;lim | C57: °C | D57: 20 | F57: local | G57: No
A58: specific electrical power demand of the heat rejection system in dry operation | B58: phr;el;dry | C58: kW/kW | D58: 0.025 | F58: local | G58: No
A59: specific electrical power demand of the heat rejection system in wet operation | B59: phr;el;wet | C59: kW/kW | D59: 0.033 | F59: local | G59: No
A60: specific electrical power demand of the heat rejection system type OTHER | B60: phr;el;oth | C60: kW/kW | D60: 0.1 | F60: local | G60: No
A61: electric power consumption of control device i (sensors, actuators, controllers) | B61: Pel;C;ctrl,i | C61: kW | D61: 0.1 | F61: local | G61: No
A63: System design data
A64: Process design
A65: Free cooling operation possibility | B65: FREE_COOL_OP | C65: - | D65: =Process_design_data!C9 -> YES | F65: local | G65: no
A66: number of generators | B66: ngen | C66: - | D66: 2 | F66: local | G66: no | H66: Method output (looped through, but also used in calculation)
A67: wet heat rejection temperature limit | B67: ϑlim;wet;hr | C67: °C | D67: 22 | F67: local | G67: No
A68: free cooling operation temperature difference limit | B68: DJfc | C68: °C | D68: 2 | F68: local | G68: No
A69: heat rejection operation temperature difference | B69: DJhr | C69: °C | D69: 6 | F69: local | G69: No
A70: required supply temperature of absorption generation heat input | B70: ϑH;C;gen;abs;in;req | C70: °C | D70: 90 | F70: local | G70: no | H70: Method output (looped through)
A71: Max. temperature level of recoverable heat | B71: ϑC,gen;out;max | C71: °C | D71: 40 | F71: local | G71: no | H71: Method output (looped through)
A73: Control type data
A74: Control of the hybrid heat rejection | B74: HBRD_HEAT_REJ_CTRL | C74: - | D74: =Process_design_data!C16 -> TEMP
A76: Constants
A77: Water specific heat | B77: cp,w | C77: Wh/kg°C | D77: 1.16
A78: Reference Temperature | B78: T0,abs | C78: K | D78: 273.15

Sheet Method_calculation
A1: THIS IS A MANDATORY SHEET One time step calculation shall be described here. For each calculation step (= 1 row) data for the formula in column D shall be taken from the "Method_input" sheet or previous calculation steps. Include in the column "Formula ref" its number in the standard text. The example is based on EN 15316-4-1:2008 Copy and paste a copy of the equation into column "Formula" Use the column note for information on the calculation
A3: Description | B3: Symbol | C3: Unit | D3: Value | E3: Formula ref | F3: Formula | G3: Notes
A4: Operation conditions calculations
A5: Evaporator water outlet temperature for chiller type generators | B5: JC,cond;in;dry | C5: °C | D5: =MAX(Method_input!D57,Method_input!D7+Method_input!D69+Method_input!D14) -> 20 | E5: Formula (3a) | F5: max(Jcond;in;lim ; Je + DJhr + DJls;dis;hr)
A6: Evaporator water outlet temperature for chiller type generators | B6: JC,cond;in;wet | C6: °C | D6: =MAX(Method_input!D57,Method_input!D8+Method_input!D69+Method_input!D14) -> 20 | E6: Formula (3b) | F6: max(Jcond;in;lim ; Je;wb + DJhr + DJls;dis;hr)
A7: generation outlet temperature really delivered | B7: JC;gen;out | C7: - | D7: =MAX(Method_input!D10,Method_input!D28) -> 14 | E7: Formula (4) | F7: JC;gen;out = max(JC;gen;out;req ; JC;gen;out;lim) | G7: Method output
A8: Evaporator outlet water temperature in case of compression or absorption chillers | B8: JC;evap;out | C8: °C | D8: =IF(OR(Method_input!D24="COMP",Method_input!D24="ABS"),D7,"-") -> 14 | E8: Formula (5) | F8: JC;evap;out = JC;gen;out
A9: Operation factor for free cooling mode, if FREE_COOL_OP = NO | B9: fop;fc | C9: - | D9: =IF(OR(Method_input!D65="NO",Method_input!D25="AIR_C_COND"),0,"-") -> - | E9: Formula (6a) | F9: fop;fc = 0
A10: Operation factor for free cooling mode, else if HEAT_REJ_TYPE = DRY | B10: fop;fc | C10: - | D10: =IF(AND(Method_input!D65="YES",Method_input!D25="DRY"),IF((Method_input!D10-Method_input!D7)>Method_input!D68,1,0),"-") -> - | E10: Formula (6b) | F10: If (JC;gen;out;req - Je) > DJfc fop;fc = 1 else fop;fc = 0
A11: Operation factor for free cooling mode, else if HEAT_REJ_TYPE = WET or HYBRID | B11: fop;fc | C11: - | D11: =IF(AND(Method_input!D65="YES",OR(Method_input!D25="WET",Method_input!D25="HYBRID")),IF((Method_input!D10-Method_input!D8)>Method_input!D68,1,0),"-") -> 1 | E11: Formula (6c) | F11: If (JC;gen;out;req - Je;wb) > DJfc fop;fc = 1 else fop;fc = 0
A12: Operation factor for free cooling mode, else | B12: fop;fc | C12: - | D12: =IF(AND(Method_input!D65="YES",Method_input!D25="OTHER"),IF((Method_input!D10-Method_input!D19)>Method_input!D68,1,0),"-") -> - | E12: Formula (6d) | F12: If (JC;gen;out;req - Jsk) > DJfc fop;fc = 1 else fop;fc = 0
A13: Maximum energy possibly extracted by the generation system | B13: QC;gen;in;max | C13: kWh | D13: =SUM(D14:D19) -> 462.9867046 | E13: Formula (7)
A14: The maximum heat extraction of generator j=1, If HEAT_REJ_TYPE = AIR_C_COND | B14: QC;gen;in;max;j | C14: kWh | D14: =IF(Method_input!D25="AIR_C_COND",IF(D20<>"-",D20,IF(D23<>"-",D23,D26)),0) -> 0 | E14: Formula (8a) | F14: QC;gen;in;max;j = QC;gen;in;max;j;e | G14: Method output
A15: The maximum heat extraction of generator j=1, else if fop;hr;wet = 1 | B15: QC;gen;in;max;j | C15: kWh | D15: =IF(AND(Method_input!D25<>"AIR_C_COND",OR(D44=1,D46=1,D48=1,D50=1,D52=1,D54=1,D56=1,D58=1)),IF(D22<>"-",D22,D25),0) -> 0 | E15: Formula (8b) | F15: QC;gen;in;max;j = QC;gen;in;max;j;wet | G15: Method output
A16: The maximum heat extraction of generator j=1, else | B16: QC;gen;in;max;j | C16: kWh | D16: =IF(AND(Method_input!D25<>"AIR_C_COND",OR(D44=0,D46=0,D48=0,D50=0,D52=0,D54=0,D56=0,D58=0)),IF(D21<>"-",D21,IF(D24<>"-",D24,IF(D26<>"-",D26))),0) -> 392.9115355 | E16: Formula (8c) | F16: QC;gen;in;max;j = QC;gen;in;max;j;dry | G16: Method output
A17: The maximum heat extraction of generator j=2, If HEAT_REJ_TYPE = AIR_C_COND | B17: QC;gen;in;max;j | C17: kWh | D17: =IF(Method_input!D25="AIR_C_COND",IF(D27<>"-",D27,IF(D30<>"-",D30)),0) -> 0 | E17: Formula (8a) | F17: QC;gen;in;max;j = QC;gen;in;max;j;e | G17: Method output
A18: The maximum heat extraction of generator j=2, else if fop;hr;wet = 1 | B18: QC;gen;in;max;j | C18: kWh | D18: =IF(AND(Method_input!D25<>"AIR_C_COND",OR(D44=1,D46=1,D48=1,D50=1,D52=1,D54=1,D56=1,D58=1)),IF(D29<>"-",D29,IF(D32<>"-",D32)),0) -> 0 | E18: Formula (8b) | F18: QC;gen;in;max;j = QC;gen;in;max;j;wet | G18: Method output
A19: The maximum heat extraction of generator j=2, else | B19: QC;gen;in;max;j | C19: kWh | D19: =IF(AND(Method_input!D25<>"AIR_C_COND",OR(D44=0,D46=0,D48=0,D50=0,D52=0,D54=0,D56=0,D58=0)),IF(D28<>"-",D28,IF(D31<>"-",D31,IF(D33<>"-",D33))),0) -> 70.07516907 | E19: Formula (8c) | F19: QC;gen;in;max;j = QC;gen;in;max;j;dry | G19: Method output
A20: maximum heat extraction of the generator j=1 depending on type and operation, if GEN_TYPE = COMP | B20: QC;gen;in;max;j;e | C20: kWh | D20: =IF(Method_input!D24="COMP",Method_input!D29*Method_in*((Method_input!$D$78+D8)/(MAX(Method_input!D57,Method_input!D7)-D8+Product_tech_data!D36))/((Method_input!$D$78+Method_input!D32)/(Method_input!D31-Method_input!D32+Product_tech_data!D36)),"-") -> 392.9115355 | E20: Formula (9a)
A21: maximum heat extraction of the generator j=1 depending on type and operation, if GEN_TYPE = COMP | B21: QC;gen;in;max;j;dry | C21: kWh | D21: =IF(Method_input!D24="COMP",Method_input!D29*Method_in*((Method_input!$D$78+D8)/(D5-D8+Product_tech_data!D36))/((Method_input!$D$78+Method_input!D32)/(Method_input!D31-Method_input!D32+Product_tech_data!D36)),"-") -> 392.9115355 | E21: Formula (9b)
A22: Maximum heat extraction of the generator j=1 depending on type and operation, if GEN_TYPE = COMP | B22: QC;gen;in;max;j;wet | C22: kWh | D22: =IF(Method_input!D24="COMP",Method_input!D29*Method_in*((Method_input!$D$78+D8)/(D6-D8+Product_tech_data!D36))/((Method_input!$D$78+Method_input!D32)/(Method_input!D31-Method_input!D32+Product_tech_data!D36)),"-") -> 392.9115355 | E22: Formula (9c)
A23: Maximum heat extraction of the generator j=1 depending on type and operation, if GEN_TYPE = ABS | B23: QC;gen;in;max;j;e | C23: kWh | D23: =IF(Method_input!D24="ABS",Method_input!D29*Method_in*(Method_input!D54*D34^2+Method_input!D55*D34+Method_input!D56)/(Method_input!D54*D37^2+Method_input!D55*D37+Method_input!D56),"-") -> - | E23: Formula (9d)
A24: Maximum heat extraction of the generator j=1 depending on type and operation, if GEN_TYPE = ABS | B24: QC;gen;in;max;j;dry | C24: kWh | D24: =IF(Method_input!D24="ABS",Method_input!D29*Method_in*(Method_input!D54*D35^2+Method_input!D55*D35+Method_input!D56)/(Method_input!D54*D37^2+Method_input!D55*D37+Method_input!D56),"-") -> - | E24: Formula (9e)
A25: Maximum heat extraction of the generator j=1 depending on type and operation, if GEN_TYPE = ABS | B25: QC;gen;in;max;j;wet | C25: kWh | D25: =IF(Method_input!D24="ABS",Method_input!D29*Method_in*(Method_input!D54*D36^2+Method_input!D55*D36+Method_input!D56)/(Method_input!D54*D37^2+Method_input!D55*D37+Method_input!D56),"-") -> - | E25: Formula (9f)
A26: Maximum heat extraction of the generator j=1 depending on type and operation, else | B26: QC;gen;in;max;j;dry | C26: kWh | D26: =IF(Method_input!D24="OTHER",Method_input!D29*Method_in*0.1,"-") -> - | E26: Formula (9g)
A27: maximum heat extraction of the generator j=2 depending on type and operation, if GEN_TYPE = COMP | B27: QC;gen;in;max;j;e | C27: kWh | D27: =IF(Method_input!E24="COMP",Method_input!E29*Method_in*((Method_input!$D$78+D8)/(MAX(Method_input!D57,Method_input!D7)-D8+Product_tech_data!E36))/((Method_input!$D$78+Method_input!E32)/(Method_input!E31-Method_input!E32+Product_tech_data!E36)),"-") -> 70.07516907 | E27: Formula (9a)
A28: maximum heat extraction of the generator j=2 depending on type and operation, if GEN_TYPE = COMP | B28: QC;gen;in;max;j;dry | C28: kWh | D28: =IF(Method_input!E24="COMP",Method_input!E29*Method_in*((Method_input!$D$78+D8)/(D5-D8+Product_tech_data!E36))/((Method_input!$D$78+Method_input!E32)/(Method_input!E31-Method_input!E32+Product_tech_data!E36)),"-") -> 70.07516907 | E28: Formula (9b)
A29: Maximum heat extraction of the generator j=2 depending on type and operation, if GEN_TYPE = COMP | B29: QC;gen;in;max;j;wet | C29: kWh | D29: =IF(Method_input!E24="COMP",Method_input!E29*Method_in*((Method_input!$D$78+D8)/(D6-D8+Product_tech_data!E36))/((Method_input!$D$78+Method_input!E32)/(Method_input!E31-Method_input!E32+Product_tech_data!E36)),"-") -> 70.07516907 | E29: Formula (9c)
A30: Maximum heat extraction of the generator j=2 depending on type and operation, if GEN_TYPE = ABS | B30: QC;gen;in;max;j;e | C30: kWh | D30: =IF(Method_input!E24="ABS",Method_input!E29*Method_in*(Method_input!E54*D34^2+Method_input!E55*D34+Method_input!E56)/(Method_input!E54*D37^2+Method_input!E55*D37+Method_input!E56),"-") -> - | E30: Formula (9d)
A31: Maximum heat extraction of the generator j=2 depending on type and operation, if GEN_TYPE = ABS | B31: QC;gen;in;max;j;dry | C31: kWh | D31: =IF(Method_input!E24="ABS",Method_input!E29*Method_in*(Method_input!E54*D35^2+Method_input!E55*D35+Method_input!E56)/(Method_input!E54*D37^2+Method_input!E55*D37+Method_input!E56),"-") -> - | E31: Formula (9e)
A32: Maximum heat extraction of the generator j=2 depending on type and operation, if GEN_TYPE = ABS | B32: QC;gen;in;max;j;wet | C32: kWh | D32: =IF(Method_input!E24="ABS",Method_input!E29*Method_in*(Method_input!E54*D36^2+Method_input!E55*D36+Method_input!E56)/(Method_input!E54*D37^2+Method_input!E55*D37+Method_input!E56),"-") -> - | E32: Formula (9f)
A33: Maximum heat extraction of the generator j=2 depending on type and operation, else | B33: QC;gen;in;max;j;dry | C33: kWh | D33: =IF(Method_input!E24="OTHER",Method_input!E29*Method_in,"-") -> - | E33: Formula (9g)
A34: Carnot heat ratio with outdoor air | B34: zc;e | C34: kWh | D34: =(Method_input!$D$78+D8)*(Method_input!D13-MAX(Method_input!D57,Method_input!D7))/((Method_input!$D$78+Method_input!D13)*(MAX(Method_input!D57,Method_input!D7)-D8)) -> 8.685722928 | E34: Formula (22)
A35: Carnot heat ratio with dry heat rejection | B35: zc;dry | C35: kWh | D35: =(Method_input!$D$78+D8)*(Method_input!D13-D5)/((Method_input!$D$78+Method_input!D13)*(D5-D8)) -> 8.685722928 | E35: Formula (22)
A36: Carnot heat ratio with wet heat rejection | B36: zc;wet | C36: kWh | D36: =(Method_input!$D$78+D8)*(Method_input!D13-D6)/((Method_input!$D$78+Method_input!D13)*(D6-D8)) -> 8.685722928 | E36: Formula (22)
A37: Carnot heat ratio under nominal conditions | B37: zc;n | C37: kWh | D37: =(Method_input!$D$78+Method_input!D32)*(90-Method_input!D31)/((Method_input!$D$78+90)*(Method_input!D31-Method_input!D32)) -> 2.012463409 | E37: Formula (22)
A38: Energy to be extracted by the generator with priority p (for p = 1..ngen), if | C38: kWh | D38: =IF(Method_input!D17<Method_input!D18,IF(Method_input!D9>IF(D14<>0,D14,IF(D15<>0,D15,D16)),Method_input!D9-IF(D14<>0,D14,IF(D15<>0,D15,D16)),"-"),IF(Method_input!D9>IF(D17<>0,D17,IF(D18<>0,D18,D19)),Method_input!D9-IF(D17<>0,D17,IF(D18<>0,D18,D19)),"-")) -> - | E38: Formula (10a)
A39: Energy to be extracted by the generator with priority p (for p = 1..ngen), if | C39: kWh | D39: =IF(Method_input!D17<Method_input!D18,IF(Method_input!D9>IF(D14<>0,D14,IF(D15<>0,D15,D16)),IF(D14<>0,D14,IF(D15<>0,D15,D16)),"-"),IF(Method_input!D9>IF(D17<>0,D17,IF(D18<>0,D18,D19)),IF(D17<>0,D17,IF(D18<>0,D18,D19)),"-")) -> - | E39: Formula (11a)
A40: Energy to be extracted by the generator with priority p (for p = 1..ngen), else | C40: kWh | D40: =IF(Method_input!D17<Method_input!D18,IF(Method_input!D9<=IF(D14<>0,D14,IF(D15<>0,D15,D16)),0,"-"),IF(Method_input!D9<=IF(D17<>0,D17,IF(D18<>0,D18,D19)),0,"-")) -> 0 | E40: Formula (10b)
A41: Energy to be extracted by the generator with priority p (for p = 1..ngen), else | C41: kW | D41: =IF(Method_input!D17<Method_input!D18,IF(Method_input!D9<=IF(D14<>0,D14,IF(D15<>0,D15,D16)),MAX(0,Method_input!D9),"-"),IF(Method_input!D9<=IF(D17<>0,D17,IF(D18<>0,D18,D19)),MAX(0,Method_input!D9),"-")) -> 7.620772 | E41: Formula (11b)
A42: Part-load factor of generator j=1 | C42: - | D42: =IF(Method_input!D17<Method_input!D18,IF(D39<>"-",D39,D41),IF(D38<>"-",D38,D40))/IF(D14<>0,D14,IF(D15<>0,D15,D16))*100 -> 0 | E42: Formula (12)
A43: Part-load factor of generator j=2 | C43: - | D43: =IF(Method_input!D17<Method_input!D18,IF(D38<>"-",D38,D40),IF(D39<>"-",D39,D41))/IF(D17<>0,D17,IF(D18<>0,D18,D19))*100 -> 10.87513894 | E43: Formula (12)
A44: Operation factor of the heat rejection device, if HEAT_REJ_TYPE = AIR_C_COND | B44: fop;hr;wet | C44: - | D44: =IF(Method_input!D25="AIR_C_COND",0,"-") -> - | E44: Formula (13a) | F44: fop;hr;wet = 0
A45: Condenser inlet temperature from the heat rejection device, if HEAT_REJ_TYPE = AIR_C_COND | B45: Jcond;in | C45: °C | D45: =IF(Method_input!D25="AIR_C_COND",MAX(Method_input!D57,Method_input!D7),"-") -> - | E45: Formula (14a) | F45: Jcond;in = max(Jcond;in;lim ; Je)
A46: Operation factor of the heat rejection device, else if HEAT_REJ_TYPE = DRY | B46: fop;hr;wet | C46: - | D46: =IF(Method_input!D25="DRY",0,"-") -> - | E46: Formula (13b) | F46: fop;hr;wet = 0
A47: Condenser inlet temperature from the heat rejection device, else if HEAT_REJ_TYPE = DRY | B47: Jcond;in | C47: °C | D47: =IF(Method_input!D25="DRY",D5,"-") -> - | E47: Formula (14b) | F47: Jcond;in = Jcond;in;dry
A48: Operation factor of the heat rejection device, else if HEAT_REJ_TYPE = WET | B48: fop;hr;wet | C48: - | D48: =IF(Product_descriptive_data!C25="WET",1,"-") -> - | E48: Formula (13c) | F48: fop;hr;wet = 1
A49: Condenser inlet temperature from the heat rejection device, else if HEAT_REJ_TYPE = WET | B49: Jcond;in | C49: °C | D49: =IF(Method_input!D25="WET",D6,"-") -> - | E49: Formula (14c) | F49: Jcond;in = Jcond;in;wet
A50: Operation factor of the heat rejection device, else if HEAT_REJ_TYPE = HYBRID, if HBRD_HEAT_REJ_CTRL = TEMP, if Je > Jlim;wet;hr | B50: fop;hr;wet | C50: - | D50: =IF(AND(Method_input!D25="HYBRID",Method_input!D74="TEMP",Method_input!D7>Method_input!D67),1,"-") -> - | E50: Formula (13d) | F50: fop;hr;wet = 1
A51: Condenser inlet temperature from the heat rejection device, else if HEAT_REJ_TYPE = HYBRID, if HBRD_HEAT_REJ_CTRL = TEMP, if Je > Jlim;wet;hr | B51: Jcond;in | C51: °C | D51: =IF(AND(Method_input!D25="HYBRID",Method_input!D74="TEMP",Method_input!D7>Method_input!D67),D6,"-") -> - | E51: Formula (14d) | F51: Jcond;in = Jcond;in;wet
A52: Operation factor of the heat rejection device, else if HEAT_REJ_TYPE = HYBRID, if HBRD_HEAT_REJ_CTRL = TEMP, else | B52: fop;hr;wet | C52: - | D52: =IF(AND(Method_input!D25="HYBRID",Method_input!D74="TEMP",Method_input!D7<=Method_input!D67),0,"-") -> 0 | E52: Formula (13e) | F52: fop;hr;wet = 0
A53: Condenser inlet temperature from the heat rejection device, else if HEAT_REJ_TYPE = HYBRID, if HBRD_HEAT_REJ_CTRL = TEMP, else | B53: Jcond;in | C53: °C | D53: =IF(AND(Method_input!D25="HYBRID",Method_input!D74="TEMP",Method_input!D7<=Method_input!D67),D5,"-") -> 20 | E53: Formula (14e) | F53: Jcond;in = Jcond;in;dry
A54: Operation factor of the heat rejection device, else if HEAT_REJ_TYPE = HYBRID, else if HEAT_REJ_CTRL = MAX_POWER, if | B54: fop;hr;wet | C54: - | D54: =IF(AND(Product_descriptive_data!C25="HYBRID",Process_design_data!C16="MAX_POWER",Method_input!D9>SUM(D21,D24,D26,D28,D31,D33)),1,"-") -> - | E54: Formula (13f) | F54: fop;hr;wet = 1
A55: Condenser inlet temperature from the heat rejection device, else if HEAT_REJ_TYPE = HYBRID, else if HBRD_HEAT_REJ_CTRL = MAX_POWER, if | B55: Jcond;in | C55: °C | D55: =IF(AND(Product_descriptive_data!C25="HYBRID",Process_design_data!C16="MAX_POWER",Method_input!D9>SUM(D21,D24,D26,D28,D31,D33)),MAX(D6,Method_input!D57),"-") -> - | E55: Formula (14f) | F55: Jcond;in = max(Jcond;in;lim ; Jcond;in;wet)
A56: Operation factor of the heat rejection device, else if HEAT_REJ_TYPE = HYBRID, else if HBRD_HEAT_REJ_CTRL = MAX_POWER,, else | B56: fop;hr;wet | C56: - | D56: =IF(AND(Product_descriptive_data!C25="HYBRID",Process_design_data!C16="MAX_POWER",Method_input!D9<=SUM(D21,D24,D26,D28,D31,D33)),0,"-") -> - | E56: Formula (13g) | F56: fop;hr;wet = 0
A57: Condenser inlet temperature from the heat rejection device, else if HEAT_REJ_TYPE = HYBRID, else if HBRD_HEAT_REJ_CTRL = MAX_POWER, else | B57: Jcond;in | C57: °C | D57: =IF(AND(Product_descriptive_data!C25="HYBRID",Process_design_data!C16="MAX_POWER",Method_input!D9<=SUM(D21,D24,D26,D28,D31,D33)),D5,"-") -> - | E57: Formula (14g) | F57: Jcond;in = Jcond;in;dry
A58: Operation factor of the heat rejection device, else | B58: fop;hr;wet | C58: - | D58: =IF(Product_descriptive_data!C25="OTHER",0,"-") -> - | E58: Formula (13h) | F58: fop;hr;wet = 0
A59: Condenser inlet temperature from the heat rejection device, else | B59: Jcond;in | C59: °C | D59: =IF(Method_input!D25="OTHER",MAX(Method_input!D57,Method_input!D19),"-") -> - | E59: Formula (14h) | F59: Jcond;in = max(Jcond;in;lim ; Jsk)
A60: Energy calculations
A61: Heat extracted by the cooling generation system | B61: QC;gen;in | C61: kWh | D61: =Method_input!D20*((1-IF(D9<>"-",D9,IF(D10<>"-",D10,IF(D11<>"-",D11,D12))))*(IF(Method_input!D24="COMP",IF(Method_input!D17<Method_input!D18,IF(D39<>"-",D39,D41),IF(D38<>"-",D38,D40)))+IF(Method_input!E24="COMP",IF(Method_input!D17<Method_input!D18,IF(D38<>"-",D38,D40),IF(D39<>"-",D39,D41))))+(1-IF(D9<>"-",D9,IF(D10<>"-",D10,IF(D11<>"-",D11,D12))))*(IF(Method_input!D24="OTHER",IF(Method_input!D17<Method_input!D18,IF(D39<>"-",D39,D41),IF(D38<>"-",D38,D40)))+IF(Method_input!E24="OTHER",IF(Method_input!D17<Method_input!D18,IF(D38<>"-",D38,D40),IF(D39<>"-",D39,D41))))+IF(D9<>"-",D9,IF(D10<>"-",D10,IF(D11<>"-",D11,D12)))*Method_input!D9)+IF(Method_input!D24="ABS",MIN(IF(Method_input!D17<Method_input!D18,IF(D39<>"-",D39,D41),IF(D38<>"-",D38,D40)),Method_input!D12*D74))+IF(Method_input!E24="ABS",MIN(IF(Method_input!D17<Method_input!D18,IF(D38<>"-",D38,D40),IF(D39<>"-",D39,D41)),Method_input!D12*D75)) -> 7.620772 | E61: Formula (15) | G61: Method output
A62: Total heat potentially recoverable or to be rejected | B62: QC;gen;out | C62: kWh | D62: =D64+D77+Method_input!D12+Method_input!D20*((1-IF(D9<>"-",D9,IF(D10<>"-",D10,IF(D11<>"-",D11,D12))))*(IF(Method_input!D17<Method_input!D18,IF(D39<>"-",D39,D41),IF(D38<>"-",D38,D40))+IF(Method_input!D17<Method_input!D18,IF(D38<>"-",D38,D40),IF(D39<>"-",D39,D41)))+IF(D9<>"-",D9,IF(D10<>"-",D10,IF(D11<>"-",D11,D12)))*Method_input!D9) -> 7.620772 | E62: Formula (16)
A63: Heat potentially recoverable | B63: QC;gen;out;rbl | C63: kWh | D63: =D64+D77+Method_input!D12+Method_input!D20*(1-IF(D9<>"-",D9,IF(D10<>"-",D10,IF(D11<>"-",D11,D12))))*(IF(Method_input!D17<Method_input!D18,IF(D39<>"-",D39,D41),IF(D38<>"-",D38,D40))+IF(Method_input!D17<Method_input!D18,IF(D38<>"-",D38,D40),IF(D39<>"-",D39,D41))) -> 0 | E63: Formula (17) | G63: Method output
A64: Required electrical energy for the compression chillers | B64: EC;gen;el;in | C64: kWh | D64: =Method_input!D20*(1-IF(D9<>"-",D9,IF(D10<>"-",D10,IF(D11<>"-",D11,D12))))*(IF(Method_input!D24="COMP",IF(Method_input!D17<Method_input!D18,IF(D39<>"-",D39,D41),IF(D38<>"-",D38,D40))/D65,0)+IF(Method_input!E24="COMP",IF(Method_input!D17<Method_input!D18,IF(D38<>"-",D38,D40),IF(D39<>"-",D39,D41))/D66,0)) -> 0 | E64: Formula (18) | G64: Method output
A65: Energy efficiency ratio for generator j =1 | B65: EERj | C65: - | D65: =Method_input!D30*(IF(D67<>"-",D67,IF(D69<>"-",D69,D71))) -> 9.961247582 | E65: Formula (19) | F65: EERj = EERn;j × fEER;j
A66: Energy efficiency ratio for generator j =2 | B66: EERj | C66: - | D66: =Method_input!E30*IF(D68<>"-",D68,IF(D70<>"-",D70,D72)) -> 8.83018081 | E66: Formula (19) | F66: EERj = EERn;j × fEER;j
A67: factor for the calculation of the EER based on EN 14825 data if fC;PL;j > fC;PL;j;min, for generator j =1 | B67: fEER;j | C67: - | D67: =IF(AND(Product_tech_data!C4=14825,D42>Method_input!D53),(Method_input!$D$78+D8)/(IF(D45<>"-",D45,IF(D47<>"-",D47,IF(D49<>"-",D49,IF(D51<>"-",D51,IF(D53<>"-",D53,IF(D55<>"-",D55,IF(D57<>"-",D57,D59)))))))-D8+D42/100*Product_tech_data!D36)*(Product_tech_data!D32*(D42/100)^3+Product_tech_data!D33*(D42/100)^2+Product_tech_data!D34*D42/100+Product_tech_data!D35),"-") -> - | E67: Formula (20a)
A68: factor for the calculation of the EER based on EN 14825 data if fC;PL;j > fC;PL;j;min, for generator j =2 | B68: fEER;j | C68: - | D68: =IF(AND(Product_tech_data!C4=14825,D42>Method_input!E53),(Method_input!$D$78+D8)/(IF(D45<>"-",D45,IF(D47<>"-",D47,IF(D49<>"-",D49,IF(D51<>"-",D51,IF(D53<>"-",D53,IF(D55<>"-",D55,IF(D57<>"-",D57,D59)))))))-D8+D42/100*Product_tech_data!DE6)*(Product_tech_data!E32*(D42/100)^3+Product_tech_data!E33*(D42/100)^2+Product_tech_data!E34*D42/100+Product_tech_data!E35),"-") -> - | E68: Formula (20a)
A69: factor for the calculation of the EER based on EN 14825 data, else, for generator j =1 | B69: fEER;j | C69: - | D69: =IF(AND(Product_tech_data!C4=14825,D42<=Method_input!D53),(Method_input!$D$78+D8)/(IF(D45<>"-",D45,IF(D47<>"-",D47,IF(D49<>"-",D49,IF(D51<>"-",D51,IF(D53<>"-",D53,IF(D55<>"-",D55,IF(D57<>"-",D57,D59)))))))-D8+Method_input!D53/100*Product_tech_data!D36)*(Product_tech_data!D32*(Method_input!D53/100)^3+Product_tech_data!D33*(Method_input!D53/100)^2+Product_tech_data!D34*Method_input!D53/100+Product_tech_data!D35),"-") -> 3.519875471 | E69: Formula (20b)
A70: factor for the calculation of the EER based on EN 14825 data, else, for generator j =2 | B70: fEER;j | C70: - | D70: =IF(AND(Product_tech_data!C4=14825,D42<=Method_input!E53),(Method_input!$D$78+D8)/(IF(D45<>"-",D45,IF(D47<>"-",D47,IF(D49<>"-",D49,IF(D51<>"-",D51,IF(D53<>"-",D53,IF(D55<>"-",D55,IF(D57<>"-",D57,D59)))))))-D8+Method_input!D53/100*Product_tech_data!E36)*(Product_tech_data!E32*(Method_input!D53/100)^3+Product_tech_data!E33*(Method_input!D53/100)^2+Product_tech_data!E34*Method_input!D53/100+Product_tech_data!E35),"-") -> 2.207545202 | E70: Formula (20b)
A71: factor for the calculation of the EER based on nominal EER from EN 14511 or default value, for generator j =1 | B71: fEER;j | C71: - | D71: =IF(Product_tech_data!C4=14511,(Method_input!D78+D8)/(IF(D45<>"-",D45,IF(D47<>"-",D47,IF(D49<>"-",D49,IF(D51<>"-",D51,IF(D53<>"-",D53,IF(D55<>"-",D55,IF(D57<>"-",D57,D59)))))))-D8)/((Method_input!D78+Method_input!D32)/(Method_input!D31-Method_input!D32)),"-") -> - | E71: Formula (20c)
A72: factor for the calculation of the EER based on nominal EER from EN 14511 or default value, for generator j =2 | B72: fEER;j | C72: - | D72: =IF(Product_tech_data!C4=14511,(Method_input!D78+D8)/(IF(D45<>"-",D45,IF(D47<>"-",D47,IF(D49<>"-",D49,IF(D51<>"-",D51,IF(D53<>"-",D53,IF(D55<>"-",D55,IF(D57<>"-",D57,D59)))))))-D8)/((Method_input!D78+Method_input!E32)/(Method_input!E31-Method_input!E32)),"-") -> - | E72: Formula (20c)
A73: Required heat input for the absorption chillers | B73: QH;C;gen;abs;in;req | C73: kWh | D73: =(1-IF(D9<>"-",D9,IF(D10<>"-",D10,IF(D11<>"-",D11,D12))))*(IF(Method_input!D24="ABS",IF(Method_input!D17<Method_input!D18,IF(D39<>"-",D39,D41),IF(D38<>"-",D38,D40))/D74,0)+IF(Method_input!E24="ABS",IF(Method_input!D17<Method_input!D18,IF(D38<>"-",D38,D40),IF(D39<>"-",D39,D41))/D75,0)) -> 0 | E73: Formula (21) | G73: Method output
A74: Heat ratio for generator k=1 | B74: zk | C74: kWh | D74: =Method_input!D54*D76^2+Method_input!D55*D76+Method_input!D56 -> 0.6104294034 | E74: Formula (22)
A75: Heat ratio for generator k=2 | B75: zk | C75: kWh | D75: =Method_input!E54*D76^2+Method_input!E55*D76+Method_input!E56 -> 0.6104294034 | E75: Formula (22)
A76: Carnot heat ratio | B76: zc | C76: kWh | D76: =(Method_input!$D$78+D8)*(Method_input!D13-IF(D45<>"-",D45,IF(D47<>"-",D47,IF(D49<>"-",D49,IF(D51<>"-",D51,IF(D53<>"-",D53,IF(D55<>"-",D55,IF(D57<>"-",D57,D59))))))))/((Method_input!$D$78+Method_input!D13)*(IF(D45<>"-",D45,IF(D47<>"-",D47,IF(D49<>"-",D49,IF(D51<>"-",D51,IF(D53<>"-",D53,IF(D55<>"-",D55,IF(D57<>"-",D57,D59)))))))-D8)) -> 8.685722928 | E76: Formula (23)
A77: Required electrical energy for the generators 1..n of type OTHER | B77: EC;gen;el;in | C77: kWh | D77: =Method_input!D20*IF(Method_input!D24="OTHER",IF(Method_input!D17<Method_input!D18,IF(D39<>"-",D39,D41),IF(D38<>"-",D38,D40)),0)*0.1+IF(Method_input!E24="OTHER",IF(Method_input!D17<Method_input!D18,IF(D38<>"-",D38,D40),IF(D39<>"-",D39,D41)),0)*0.1 -> 0 | E77: Formula (24) | G77: Method output
A78: Auxiliary electrical energy demand | B78: WC;aux;gen | C78: kWh | D78: =IF(D79<>"-",D79)+IF(D80<>"-",D80)+D82+Method_input!D16 -> 0.8405193 | E78: Formula (25) | G78: Method output
A79: Auxiliary electrical energy demand for the heat rejection if HEAT_REC_TYPE = OTHER | B79: Whr | C79: kWh | D79: =IF(Method_input!D25="OTHER",D81*(1-IF(OR(D48=1,D50=1,D54=1),1,0))*Method_input!D60,"-") -> - | E79: Formula (26a)
A80: Auxiliary electrical energy demand for the heat rejection | B80: Whr | C80: kWh | D80: =IF(Method_input!D25<>"OTHER",D81*((1-IF(OR(D48=1,D50=1,D54=1),1,0))*Method_input!D58+IF(OR(D48=1,D50=1,D54=1),1,0)*Method_input!D59),"-") -> 0.2405193 | E80: Formula (26b)
A81: Heat input to the rejection system | B81: Qhr | C81: kWh | D81: =D62-Method_input!D11+Method_input!D15 -> 9.620772 | E81: Formula (27)
A82: Auxiliary energy consumption of the control components | B82: WC;ctrl | C82: kWh | D82: =Method_input!D61*Method_input!D21*Method_in -> 0.1 | E82: Formula (28)

Sheet Method_output
A1: THIS IS A MANDATORY SHEET Output of one step calculation shall be indicated here. Each cell in the column value shall be a reference to a single cell in the "Method_calculation" sheet. The macro will take the calculation step results and fill the values table in the "Output_series" sheet.
A9: Name | B9: Symbol | C9: Unit | D9: Value | E9: Intended destination | F9: Notes
A10: Energy flow data
A11: Cooling generation electrical energy input | B11: EC,gen,el,in | C11: kWh | D11: =Method_calculation!D64+Method_calculation!D77 -> 0 | E11: M4-1, M4-4
A12: Generation system auxiliary energy input | B12: WC;aux;gen | C12: kWh | D12: =Method_calculation!D78 -> 0.8405193 | E12: M4-1, M4-4
A13: Absorption cooling generation heat input | B13: QH;C;gen;abs;in | C13: kWh | D13: =Method_input!D12 -> 0 | E13: M4-4
A14: Operation conditions data
A15: Cooling energy extracted by generation system | B15: QC;gen;in | C15: kWh | D15: =Method_calculation!D61 -> 7.620772 | E15: M4-1
A16: Distribution inlet temperature from the cooling generation | B16: ϑC;gen;out | C16: °C | D16: =Method_calculation!D7 -> 14 | E16: M4-1
A17: Required absorption cooling generation heat input | B17: QH;C;gen;abs;in;req | C17: kWh | D17: =Method_calculation!D73 -> 0 | E17: M3-1
A18: Required supply temperature of absorption generation heat input | B18: ϑH;C;gen;abs;in;req | C18: °C | D18: =Method_input!D70 -> 90 | E18: M3-1
A19: Recoverable heat of the cooling generation system | B19: QC;gen;out;rbl | C19: kWh | D19: =Method_calculation!D63 -> 0 | E19: M3-1
A20: Max. temperature level of recoverable heat | B20: ϑC,gen;out;max | C20: °C | D20: =Method_input!D71 -> 40 | E20: M3-1
A21: Required energy to be extracted by the generation system | B21: QC;gen;in;req | C21: kWh | D21: =Method_input!D9 -> 7.620772 | E21: M10-12
A22: Number of generators | B22: ngen | C22: - | D22: =Method_input!D66 -> 2 | E22: M10-12
A23: Maximum heat extraction of generator j=1 at the current calculation interval | B23: QC;gen;in;j;max | C23: kWh | D23: =IF(Method_calculation!D14<>0,Method_calculation!D14,IF(Method_calculation!D15<>0,Method_calculation!D15,Method_calculation!D16)) -> 392.9115355 | E23: M10-12
A24: Maximum heat extraction of generator j=2 at the current calculation interval | B24: QC;gen;in;j;max | C24: kWh | D24: =IF(Method_calculation!D17<>0,Method_calculation!D17,IF(Method_calculation!D18<>0,Method_calculation!D18,Method_calculation!D19)) -> 70.07516907 | E24: M10-12
D27: =Method_calculation!D11 -> 1
D28: =Method_calculation!D50 -> -
D29: =Method_calculation!D52 -> 0

Sheet Output_series
A1: Here a time series can be generated to test the method with variable input data. Data input series must be inserted in the "input_series" sheet before.
A3: Time series for data output
A4: Settings
A5: Number of output data | C5: 19
A7: This table will be filled automatically via a macro scanning the "input_series" and performing for each time step the calculation defined in the "Method_calculation" sheet.
A8: Press CLEAR OUTPUT to reset output series
A9: Press "Run method" to start calculation of individual time steps
B13: Cooling generation electrical energy input | C13: Generation system auxiliary energy input | D13: Absorption cooling generation heat input | F13: Cooling energy extracted by generation system | G13: Distribution inlet temperature from the cooling generation | H13: Required absorption cooling generation heat input | I13: required supply temperature of absorption generation heat input | J13: Recoverable heat of the cooling generation system | K13: Max. temperature level of recoverable heat | L13: Required energy to be extracted by the generation system | M13: Number of generators | N13: Maximum heat extraction of generator j=1 at the current time step | O13: Maximum heat extraction of generator j=2 at the current time step
B14: EC,gen,el,in | C14: WC;aux;gen | D14: QH;C;gen;abs;in | F14: QC;gen;in | G14: ϑC;gen;out | H14: QH;C;gen;abs;in;req | I14: ϑH;C;gen;abs;in;req | J14: QC;gen;out;rbl | K14: ϑC,gen;out;max | L14: QC;gen;in;req | M14: ngen | N14: QC;gen;in;j;max | O14: QC;gen;in;j;max
A15: Symbol | B15: kWh | C15: kWh | D15: kWh | F15: kWh | G15: °C | H15: kWh | I15: °C | J15: kWh | K15: °C | L15: kWh | M15: - | N15: kWh | O15: kWh
A16: Destination | B16: M4-1, M4-4 | C16: M4-1, M4-4 | D16: M4-4 | F16: M4-1 | G16: M4-1 | H16: M3-1 | I16: M3-1 | J16: M3-1 | K16: M3-1 | L16: M10-12 | M16: M10-12 | N16: M10-12 | O16: M10-12
A17: Time stamp | B17: VALUES
A18: 1 | B18: 0.9335969723 | C18: 1.186901103 | D18: 12.86453216 | F18: 7.677915 | G18: 14 | H18: 0 | I18: 90 | J18: 21.47604413 | K18: 40 | L18: 7.677915 | M18: 2 | N18: 327.4262796 | O18: 68.33499369 | R18: 0 | S18: - | T18: 0
A19: 2 | B19: 0 | C19: 0.841446575 | D19: 0 | F19: 7.657863 | G19: 14 | H19: 0 | I19: 90 | J19: 0 | K19: 40 | L19: 7.657863 | M19: 2 | N19: 374.2014624 | O19: 69.63186888 | R19: 1 | S19: - | T19: 0
A20: 3 | B20: 0 | C20: 0.841458225 | D20: 0 | F20: 7.658329 | G20: 14 | H20: 0 | I20: 90 | J20: 0 | K20: 40 | L20: 7.658329 | M20: 2 | N20: 392.9115355 | O20: 70.07516907 | R20: 1 | S20: - | T20: 0
A21: 4 | B21: 0 | C21: 0.841380725 | D21: 0 | F21: 7.655229 | G21: 14 | H21: 0 | I21: 90 | J21: 0 | K21: 40 | L21: 7.655229 | M21: 2 | N21: 392.9115355 | O21: 70.07516907 | R21: 1 | S21: - | T21: 0
A22: 5 | B22: 0 | C22: 0.841392225 | D22: 0 | F22: 7.655689 | G22: 14 | H22: 0 | I22: 90 | J22: 0 | K22: 40 | L22: 7.655689 | M22: 2 | N22: 392.9115355 | O22: 70.07516907 | R22: 1 | S22: - | T22: 0
A23: 6 | B23: 0.965976259 | C23: 1.191780148 | D23: 13.02465168 | F23: 7.680578 | G23: 14 | H23: 0 | I23: 90 | J23: 21.67120594 | K23: 40 | L23: 7.680578 | M23: 2 | N23: 302.2396427 | O23: 67.49691882 | R23: 0 | S23: - | T23: 0
A24: 7 | B24: 3.622958715 | C24: 2.477516523 | D24: 44.5339922 | F24: 24.94371 | G24: 14 | H24: 0 | I24: 90 | J24: 73.10066092 | K24: 40 | L24: 24.94371 | M24: 2 | N24: 222.4027559 | O24: 63.84299337 | R24: 0 | S24: - | T24: 0
A25: 8 | B25: 1.333947902 | C25: 1.270106832 | D25: 15.23301238 | F25: 8.237313 | G25: 14 | H25: 0 | I25: 90 | J25: 24.80427329 | K25: 40 | L25: 8.237313 | M25: 2 | N25: 181.3437856 | O25: 61.01196664 | R25: 0 | S25: - | T25: 0
A26: 9 | B26: 5.746075357 | C26: 3.165256537 | D26: 62.05871611 | F26: 32.80547 | G26: 14 | H26: 0 | I26: 90 | J26: 100.6102615 | K26: 40 | L26: 32.80547 | M26: 2 | N26: 158.2194103 | O26: 58.94276142 | R26: 0 | S26: - | T26: 0
A27: 10 | B27: 7.355733975 | C27: 5.821181729 | D27: 94.57885416 | F27: 54.28304 | G27: 14 | H27: 0 | I27: 90 | J27: 156.2176281 | K27: 40 | L27: 54.28304 | M27: 2 | N27: 256.2466536 | O27: 65.61912931 | R27: 0 | S27: 1 | T27: -
A28: 11 | B28: 16.80534011 | C28: 7.247803817 | D28: 99.10708041 | F28: 83.53618 | G28: 14 | H28: 0 | I28: 90 | J28: 199.4486005 | K28: 40 | L28: 83.53618 | M28: 2 | N28: 235.7469213 | O28: 64.59228276 | R28: 0 | S28: 1 | T28: -
A29: 12 | B29: 14.67366398 | C29: 8.424446665 | D29: 99.10708041 | F29: 121.3237 | G29: 14 | H29: 0 | I29: 90 | J29: 235.1044444 | K29: 40 | L29: 121.3237 | M29: 2 | N29: 220.3242255 | O29: 63.71979865 | R29: 0 | S29: 1 | T29: -
A30: 13 | B30: 16.20448198 | C30: 7.241254369 | D30: 99.10708041 | F30: 83.93857 | G30: 14 | H30: 0 | I30: 90 | J30: 199.2501324 | K30: 40 | L30: 83.93857 | M30: 2 | N30: 226.679732 | O30: 64.09081745 | R30: 0 | S30: 1 | T30: -
A31: 14 | B31: 13.1205105 | C31: 7.55859651 | D31: 99.10708041 | F31: 96.63897 | G31: 14 | H31: 0 | I31: 90 | J31: 208.8665609 | K31: 40 | L31: 96.63897 | M31: 2 | N31: 235.7469213 | O31: 64.59228276 | R31: 0 | S31: 1 | T31: -
A32: 15 | B32: 14.12996597 | C32: 8.589384031 | D32: 99.10708041 | F32: 126.8655 | G32: 14 | H32: 0 | I32: 90 | J32: 240.1025464 | K32: 40 | L32: 126.8655 | M32: 2 | N32: 248.154654 | O32: 65.23025856 | R32: 0 | S32: 1 | T32: -
A33: 16 | B33: 17.3913685 | C33: 7.261404714 | D33: 99.10708041 | F33: 83.3623 | G33: 14 | H33: 0 | I33: 90 | J33: 199.8607489 | K33: 40 | L33: 83.3623 | M33: 2 | N33: 245.5697097 | O33: 65.10165718 | R33: 0 | S33: 1 | T33: -
A34: 17 | B34: 8.931248294 | C34: 6.373302767 | D34: 99.10708041 | F34: 64.91024 | G34: 14 | H34: 0 | I34: 90 | J34: 172.9485687 | K34: 40 | L34: 64.91024 | M34: 2 | N34: 248.154654 | O34: 65.23025856 | R34: 0 | S34: 1 | T34: -
A35: 18 | B35: 7.08535504 | C35: 5.301418676 | D35: 85.74070755 | F35: 47.64117 | G35: 14 | H35: 0 | I35: 90 | J35: 140.4672326 | K35: 40 | L35: 47.64117 | M35: 2 | N35: 212.3846138 | O35: 63.2317378 | R35: 0 | S35: 1 | T35: -
A36: 19 | B36: 5.589854772 | C36: 4.348716575 | D36: 68.06712719 | F36: 37.94049 | G36: 14 | H36: 0 | I36: 90 | J36: 111.597472 | K36: 40 | L36: 37.94049 | M36: 2 | N36: 216.2815792 | O36: 63.47483006 | R36: 0 | S36: 1 | T36: -
A37: 20 | B37: 1.244007421 | C37: 1.506268649 | D37: 15.48653491 | F37: 8.732144 | G37: 14 | H37: 0 | I37: 90 | J37: 25.46268634 | K37: 40 | L37: 8.732144 | M37: 2 | N37: 231.1244326 | O37: 64.34057303 | R37: 0 | S37: 1 | T37: -
A38: 21 | B38: 1.386124196 | C38: 1.272036924 | D38: 15.32202876 | F38: 8.173324 | G38: 14 | H38: 0 | I38: 90 | J38: 24.88147695 | K38: 40 | L38: 8.173324 | M38: 2 | N38: 167.1963981 | O38: 59.79665115 | R38: 0 | S38: - | T38: 0
A39: 22 | B39: 1.242177001 | C39: 1.242930485 | D39: 14.5314604 | F39: 7.943582 | G39: 14 | H39: 0 | I39: 90 | J39: 23.7172194 | K39: 40 | L39: 7.943582 | M39: 2 | N39: 193.2351814 | O39: 61.92732638 | R39: 0 | S39: - | T39: 0
A40: 23 | B40: 1.154928531 | C40: 1.222411734 | D40: 13.97592482 | F40: 7.765616 | G40: 14 | H40: 0 | I40: 90 | J40: 22.89646935 | K40: 40 | L40: 7.765616 | M40: 2 | N40: 212.3846138 | O40: 63.2317378 | R40: 0 | S40: - | T40: 0
A41: 24 | B41: 1.089709312 | C41: 1.211670362 | D41: 13.65260416 | F41: 7.724501 | G41: 14 | H41: 0 | I41: 90 | J41: 22.46681447 | K41: 40 | L41: 7.724501 | M41: 2 | N41: 235.7469213 | O41: 64.59228276 | R41: 0 | S41: - | T41: 0
A42: 25 | B42: 1.124784639 | C42: 1.215362127 | D42: 13.78258043 | F42: 7.70712 | G42: 14 | H42: 0 | I42: 90 | J42: 22.61448507 | K42: 40 | L42: 7.70712 | M42: 2 | N42: 220.3242255 | O42: 63.71979865 | R42: 0 | S42: - | T42: 0
A43: 26 | B43: 1.087251559 | C43: 1.210403559 | D43: 13.62181179 | F43: 7.707079 | G43: 14 | H43: 0 | I43: 90 | J43: 22.41614235 | K43: 40 | L43: 7.707079 | M43: 2 | N43: 235.7469213 | O43: 64.59228276 | R43: 0 | S43: - | T43: 0
A44: 27 | B44: 1.064327945 | C44: 1.206705837 | D44: 13.50752555 | F44: 7.69638 | G44: 14 | H44: 0 | I44: 90 | J44: 22.26823349 | K44: 40 | L44: 7.69638 | M44: 2 | N44: 245.5697097 | O44: 65.10165718 | R44: 0 | S44: - | T44: 0
A45: 28 | B45: 1.042187748 | C45: 1.203337364 | D45: 13.40028382 | F45: 7.691023 | G45: 14 | H45: 0 | I45: 90 | J45: 22.13349457 | K45: 40 | L45: 7.691023 | M45: 2 | N45: 256.2466536 | O45: 65.61912931 | R45: 0 | S45: - | T45: 0
A46: 29 | B46: 1.02043147 | C46: 1.200106183 | D46: 13.29548184 | F46: 7.688334 | G46: 14 | H46: 0 | I46: 90 | J46: 22.00424731 | K46: 40 | L46: 7.688334 | M46: 2 | N46: 267.8942287 | O46: 66.14489379 | R46: 0 | S46: - | T46: 0
A47: 30 | B47: 1.06512629 | C47: 1.207123418 | D47: 13.51765745 | F47: 7.702153 | G47: 14 | H47: 0 | I47: 90 | J47: 22.28493674 | K47: 40 | L47: 7.702153 | M47: 2 | N47: 245.5697097 | O47: 65.10165718 | R47: 0 | S47: - | T47: 0
A48: 31 | B48: 2.601743255 | C48: 1.913076241 | D48: 30.90498637 | F48: 17.01632 | G48: 14 | H48: 0 | I48: 90 | J48: 50.52304962 | K48: 40 | L48: 17.01632 | M48: 2 | N48: 201.4930951 | O48: 62.51350591 | R48: 0 | S48: - | T48: 0
A49: 32 | B49: 1.535401352 | C49: 1.336863694 | D49: 16.92258739 | F49: 9.016559 | G49: 14 | H49: 0 | I49: 90 | J49: 27.47454774 | K49: 40 | L49: 9.016559 | M49: 2 | N49: 166.0189587 | O49: 59.6885644 | R49: 0 | S49: - | T49: 0
A50: 33 | B50: 4.913236916 | C50: 3.720757681 | D50: 56.78485766 | F50: 30.87032 | G50: 14 | H50: 0 | I50: 90 | J50: 92.56841457 | K50: 40 | L50: 30.87032 | M50: 2 | N50: 187.1007312 | O50: 61.4662388 | R50: 0 | S50: 1 | T50: -
A51: 34 | B51: 8.566417254 | C51: 5.871587279 | D51: 96.9528318 | F51: 52.22582 | G51: 14 | H51: 0 | I51: 90 | J51: 157.7450691 | K51: 40 | L51: 52.22582 | M51: 2 | N51: 177.2533243 | O51: 60.67564475 | R51: 0 | S51: 1 | T51: -
A52: 35 | B52: 15.08893407 | C52: 7.235526958 | D52: 99.10708041 | F52: 84.88056 | G52: 14 | H52: 0 | I52: 90 | J52: 199.0765745 | K52: 40 | L52: 84.88056 | M52: 2 | N52: 169.6021016 | O52: 60.01400329 | R52: 0 | S52: 1 | T52: -
A53: 36 | B53: 17.31649743 | C53: 8.675524969 | D53: 99.10708041 | F53: 126.2893 | G53: 14 | H53: 0 | I53: 90 | J53: 242.7128778 | K53: 40 | L53: 126.2893 | M53: 2 | N53: 168.3906581 | O53: 59.90513007 | R53: 0 | S53: 1 | T53: -
A54: 37 | B54: 14.95220715 | C54: 7.40730988 | D54: 99.10708041 | F54: 90.22283 | G54: 14 | H54: 0 | I54: 90 | J54: 204.2821176 | K54: 40 | L54: 90.22283 | M54: 2 | N54: 164.8579869 | O54: 59.5808677 | R54: 0 | S54: 1 | T54: -
A55: 38 | B55: 15.67306106 | C55: 7.856747569 | D55: 99.10708041 | F55: 103.1213 | G55: 14 | H55: 0 | I55: 90 | J55: 217.9014415 | K55: 40 | L55: 103.1213 | M55: 2 | N55: 169.6021016 | O55: 60.01400329 | R55: 0 | S55: 1 | T55: -
A56: 39 | B56: 17.35701338 | C56: 8.688969695 | D56: 99.10708041 | F56: 126.6562 | G56: 14 | H56: 0 | I56: 90 | J56: 243.1202938 | K56: 40 | L56: 126.6562 | M56: 2 | N56: 168.3906581 | O56: 59.90513007 | R56: 0 | S56: 1 | T56: -
A57: 40 | B57: 15.16138219 | C57: 7.216439036 | D57: 99.10708041 | F57: 84.22969 | G57: 14 | H57: 0 | I57: 90 | J57: 198.4981526 | K57: 40 | L57: 84.22969 | M57: 2 | N57: 173.3433245 | O57: 60.3430104 | R57: 0 | S57: 1 | T57: -
A58: 41 | B58: 74.9124034 | C58: 8.587188126 | D58: 99.10708041 | F58: 66.01652 | G58: 14 | H58: 0 | I58: 90 | J58: 240.0360038 | K58: 40 | L58: 66.01652 | M58: 2 | N58: 177.2533243 | O58: 60.67564475 | R58: 0 | S58: 1 | T58: -
A59: 42 | B59: 8.248282834 | C59: 5.41735018 | D59: 88.82723564 | F59: 46.90479 | G59: 14 | H59: 0 | I59: 90 | J59: 143.9803085 | K59: 40 | L59: 46.90479 | M59: 2 | N59: 157.1646142 | O59: 58.83773686 | R59: 0 | S59: 1 | T59: -
A60: 43 | B60: 5.242945959 | C60: 3.811348506 | D60: 58.63978514 | F60: 31.43086 | G60: 14 | H60: 0 | I60: 90 | J60: 95.3135911 | K60: 40 | L60: 31.43086 | M60: 2 | N60: 172.0780447 | O60: 60.23294128 | R60: 0 | S60: 1 | T60: -
A61: 44 | B61: 1.378821819 | C61: 1.506590281 | D61: 15.65171794 | F61: 8.441893 | G61: 14 | H61: 0 | I61: 90 | J61: 25.47243276 | K61: 40 | L61: 8.441893 | M61: 2 | N61: 178.5961525 | O61: 60.7873393 | R61: 0 | S61: 1 | T61: -
A62: 45 | B62: 1.281586035 | C62: 1.468120357 | D62: 14.90176246 | F62: 8.123329 | G62: 14 | H62: 0 | I62: 90 | J62: 24.3066775 | K62: 40 | L62: 8.123329 | M62: 2 | N62: 190.1184849 | O62: 61.69592111 | R62: 0 | S62: 1 | T62: -
A63: 46 | B63: 1.340367746 | C63: 1.249615169 | D63: 14.773004 | F63: 7.871235 | G63: 14 | H63: 0 | I63: 90 | J63: 23.98460675 | K63: 40 | L63: 7.871235 | M63: 2 | N63: 166.0189587 | O63: 59.6885644 | R63: 0 | S63: - | T63: 0
A64: 47 | B64: 1.263420875 | C64: 1.233512729 | D64: 14.34174228 | F64: 7.735346 | G64: 14 | H64: 0 | I64: 90 | J64: 23.34050915 | K64: 40 | L64: 7.735346 | M64: 2 | N64: 178.5961525 | O64: 60.7873393 | R64: 0 | S64: - | T64: 0
A65: 48 | B65: 1.217881341 | C65: 1.227461212 | D65: 14.16103013 | F65: 7.719537 | G65: 14 | H65: 0 | I65: 90 | J65: 23.09844847 | K65: 40 | L65: 7.719537 | M65: 2 | N65: 190.1184849 | O65: 61.69592111 | R65: 0 | S65: - | T65: 0
A66: 49 | B66: 1.110920351 | C66: 1.210377707 | D66: 13.65561193 | F66: 7.648576 | G66: 14 | H66: 0 | I66: 90 | J66: 22.41510828 | K66: 40 | L66: 7.648576 | M66: 2 | N66: 222.4027559 | O66: 63.84299337 | R66: 0 | S66: - | T66: 0
A67: 50 | B67: 1.094089418 | C67: 1.207839052 | D67: 13.57697364 | F67: 7.642499 | G67: 14 | H67: 0 | I67: 90 | J67: 22.31356206 | K67: 40 | L67: 7.642499 | M67: 2 | N67: 228.8805061 | O67: 64.2154524 | R67: 0 | S67: - | T67: 0
A68: 51 | B68: 1.050306788 | C68: 1.201415321 | D68: 13.37292003 | F68: 7.633386 | G68: 14 | H68: 0 | I68: 90 | J68: 22.05661282 | K68: 40 | L68: 7.633386 | M68: 2 | N68: 248.154654 | O68: 65.23025856 | R68: 0 | S68: - | T68: 0
A69: 52 | B69: 1.012396983 | C69: 1.195774857 | D69: 13.1907983 | F69: 7.627799 | G69: 14 | H69: 0 | I69: 90 | J69: 21.83099429 | K69: 40 | L69: 7.627799 | M69: 2 | N69: 267.8942287 | O69: 66.14489379 | R69: 0 | S69: - | T69: 0
A70: 53 | B70: 0.978557284 | C70: 1.190060311 | D70: 13.01164917 | F70: 7.612206 | G70: 14 | H70: 0 | I70: 90 | J70: 21.60241245 | K70: 40 | L70: 7.612206 | M70: 2 | N70: 287.4962455 | O70: 66.94952999 | R70: 0 | S70: - | T70: 0
A71: 54 | B71: 0.9346616357 | C71: 1.182975074 | D71: 12.78462032 | F71: 7.599721 | G71: 14 | H71: 0 | I71: 90 | J71: 21.31900295 | K71: 40 | L71: 7.599721 | M71: 2 | N71: 318.5769207 | O71: 68.0533325 | R71: 0 | S71: - | T71: 0
A72: 55 | B72: 0.6832210702 | C72: 1.037966851 | D72: 9.311434966 | F72: 5.524018 | G72: 14 | H72: 0 | I72: 90 | J72: 15.51867404 | K72: 40 | L72: 5.524018 | M72: 2 | N72: 314.3292284 | O72: 67.91337082 | R72: 0 | S72: - | T72: 0
A73: 56 | B73: 0.7569831871 | C73: 1.050401399 | D73: 9.701300785 | F73: 5.557772 | G73: 14 | H73: 0 | I73: 90 | J73: 16.01605597 | K73: 40 | L73: 5.557772 | M73: 2 | N73: 253.4913132 | O73: 65.48899158 | R73: 0 | S73: - | T73: 0
A74: 57 | B74: 0.8199748655 | C74: 1.060698585 | D74: 10.01608353 | F74: 5.591885 | G74: 14 | H74: 0 | I74: 90 | J74: 16.4279434 | K74: 40 | L74: 5.591885 | M74: 2 | N74: 218.2841864 | O74: 63.59707846 | R74: 0 | S74: - | T74: 0
A75: 58 | B75: 0.9416202227 | C75: 1.102500033 | D75: 11.08277409 | F75: 6.075607 | G75: 14 | H75: 0 | I75: 90 | J75: 18.10000131 | K75: 40 | L75: 6.075607 | M75: 2 | N75: 196.4557677 | O75: 62.16047406 | R75: 0 | S75: - | T75: 0
A76: 59 | B76: 1.47508725 | C76: 1.324709224 | D76: 16.5959317 | F76: 8.91735 | G76: 14 | H76: 0 | I76: 90 | J76: 26.98836895 | K76: 40 | L76: 8.91735 | M76: 2 | N76: 174.6273491 | O76: 60.45348254 | R76: 0 | S76: - | T76: 0
A77: 60 | B77: 3.164903885 | C77: 2.039655206 | D77: 34.28020434 | F77: 18.1411 | G77: 14 | H77: 0 | I77: 90 | J77: 55.58620823 | K77: 40 | L77: 18.1411 | M77: 2 | N77: 159.2884603 | O77: 59.0481616 | R77: 0 | S77: - | T77: 0
A78: 61 | B78: 2.005659801 | C78: 2.055932972 | D78: 25.53685118 | F78: 14.57667 | G78: 14 | H78: 0 | I78: 90 | J78: 42.11918098 | K78: 40 | L78: 14.57667 | M78: 2 | N78: 248.154654 | O78: 65.23025856 | R78: 0 | S78: 1 | T78: -
A79: 62 | B79: 2.464457388 | C79: 2.348870654 | D79: 30.97553303 | F79: 17.55609 | G79: 14 | H79: 0 | I79: 90 | J79: 50.99608041 | K79: 40 | L79: 17.55609 | M79: 2 | N79: 238.1282033 | O79: 64.71887762 | R79: 0 | S79: 1 | T79: -
A80: 63 | B80: 3.800765395 | C80: 3.27090483 | D80: 47.92534461 | F80: 27.2104 | G80: 14 | H80: 0 | I80: 90 | J80: 78.93651 | K80: 40 | L80: 27.2104 | M80: 2 | N80: 240.558083 | O80: 64.84596969 | R80: 0 | S80: 1 | T80: -
A81: 64 | B81: 1.896046167 | C81: 1.975100983 | D81: 24.06297059 | F81: 13.71071 | G81: 14 | H81: 0 | I81: 90 | J81: 39.66972676 | K81: 40 | L81: 13.71071 | M81: 2 | N81: 245.5697097 | O81: 65.10165718 | R81: 0 | S81: 1 | T81: -
A82: 65 | B82: 1.160318718 | C82: 1.479196056 | D82: 14.919193 | F82: 8.562793 | G82: 14 | H82: 0 | I82: 90 | J82: 24.64230472 | K82: 40 | L82: 8.562793 | M82: 2 | N82: 256.2466536 | O82: 65.61912931 | R82: 0 | S82: 1 | T82: -
A83: 66 | B83: 0.9469054774 | C83: 1.103508741 | D83: 11.11103417 | F83: 6.08241 | G83: 14 | H83: 0 | I83: 90 | J83: 18.14034965 | K83: 40 | L83: 6.08241 | M83: 2 | N83: 194.8321664 | O83: 62.04368119 | R83: 0 | S83: - | T83: 0
A84: 67 | B84: 0.7651431013 | C84: 1.05320411 | D84: 9.773883304 | F84: 5.589138 | G84: 14 | H84: 0 | I84: 90 | J84: 16.12816441 | K84: 40 | L84: 5.589138 | M84: 2 | N84: 250.7945971 | O84: 65.35936901 | R84: 0 | S84: - | T84: 0
A85: 68 | B85: 0.9791939907 | C85: 1.192573091 | D85: 13.06512965 | F85: 7.6586 | G85: 14 | H85: 0 | I85: 90 | J85: 21.70292364 | K85: 40 | L85: 7.6586 | M85: 2 | N85: 291.0455818 | O85: 67.08554315 | R85: 0 | S85: - | T85: 0
A86: 69 | B86: 0.9248962053 | C86: 1.184186127 | D86: 12.79242586 | F86: 7.650123 | G86: 14 | H86: 0 | I86: 90 | J86: 21.36744506 | K86: 40 | L86: 7.650123 | M86: 2 | N86: 332.0379173 | O86: 68.47670041 | R86: 0 | S86: - | T86: 0
A87: 70 | B87: 0.8754075253 | C87: 1.176595856 | D87: 12.55222673 | F87: 7.6362 | G87: 14 | H87: 0 | I87: 90 | J87: 21.06383425 | K87: 40 | L87: 7.6362 | M87: 2 | N87: 380.2369698 | O87: 69.77901111 | R87: 0 | S87: - | T87: 0
A88: 71 | B88: 0 | C88: 0.840678375 | D88: 0 | F88: 7.627135 | G88: 14 | H88: 0 | I88: 90 | J88: 0 | K88: 40 | L88: 7.627135 | M88: 2 | N88: 392.9115355 | O88: 70.07516907 | R88: 1 | S88: - | T88: 0
A89: 72 | B89: 0 | C89: 0.8405193 | D89: 0 | F89: 7.620772 | G89: 14 | H89: 0 | I89: 90 | J89: 0 | K89: 40 | L89: 7.620772 | M89: 2 | N89: 392.9115355 | O89: 70.07516907 | R89: 1 | S89: - | T89: 0

Sheet Graphs
A2: Energy flow data
A22: Operating conditions data

Sheet History
B2: Date | C2: Version scope | D2: Changes, notes
B4: 2014-10-14 | C4: 1st complete version
B6: 2014-10-24 | D6: graphs added
B7: 2015-02-13 | D7: disclaimer updated
B8: 2015-11-11 | C8: adapted to FV version
C9: EN 14825 / 14511 / default added
